{"text_format":"1","workbook":"xlsx","n_sheets":16,"sheets":["Feuil1","استقبال","مسك1","مسك2","غلاف","التمدرس","فضاءات الاستقبال","مدرسون-حجرات","دعم مدرسي","تعليم أولي","دوي الاحتياجات الخاصة","بطاقة المؤسسة","الأجانب","MOBILIER","TS Ens Primaire","Feuil2"],"not_rendered":{"charts":0,"images":1,"macros":1,"external_links":3,"defined_names":675,"comments":0,"pivot_tables":0},"unopened":[],"bounds":{"document_bytes":16777216,"sheet_cells":100000,"rows_first":2000,"rows_last":500,"rows_between":2000,"halvings":0,"cell_chars":16384,"cell_head_chars":4096},"cells_cut":0,"cells_raw":0,"read":"whole","date_system":"1900"}

{"sheet":"Feuil1","index":0,"n_rows":79,"n_cols":106,"rows_kept":79,"cut":false,"hidden":true,"merged":[]}
[1,2,3,4,5,6,7,8,9,10,11,12,13,14,15,16,17,18]
["CD_ETAB","CD_GIPE","NOM_ETABL","NOM_ETABA","CD_OrgTutel","CD_REG","CD_PROV","CD_COM","CD_MIL","CD_CAUTO","AdresseL","AdresseA","CP","VilleL","VilleA","TEL","FAX","e-mail","CD_NETAB","CD_ETABR","INDHcom","INDHquart","Nbre_Satellites","Directeur","Directeur Adjoint","Secrétaire Général","Censeur","Directeur d'études","Chef de Travaux","Econome/Intendant","SurveillantGénInt","Nombre de SurvGenExt","CIN_Dir","PPR_Dir","NOM_PrenDirL","NOM_PrenDirA","Préscolaire Moderne","Primaire Général","Primaire Originel","Collégial Général","Collégial Originel","Qualifiant Général","Qualifiant Originel","Qualifiant Technique","CPGE","BTS","CFCCE","CPCA","CFCAFCA","FormInspecteurs","FormCOPE","FormBS","FP","ConsGestEtab","ConsPédag","ConsEnseig","ConsClas","AssParents","AssSportive","CoopScolaire","Partenariat","ClubSanté","CentreAppui","AssEcolReussite","ProgrammeTissir","ClubEnv","CD_Financ","DC_ETAB","DO_ETAB","DF_ETAB","CD_causesFerm","DistSatEcoM","DistUnitéCol","DistColLyc","Const_Dur","Const_Prefab","Const_Pise","Const_Autre","Eau_Source","Elec_Source","Ass_Source","Clo_Dur","Clo_partie","Clo_grillage","Clo_bois","Clo_autre","Clo_sans","Superf_etab","Superf_Cour","Superf_EspVert","Superf_Exten","Cantine","Cantine_Capacité","Cantine_DO","Cantine_DF","Restauration","Couvert_place","Internat","Internat_Capacité","Internat_DO","Internat_DF","Exist_Internet","upsize_ts","nomL","FP_Bac",1491625]
["01495Z","82000P02","ECOLE PRIMARE AL AMAL  ","مدرسة الأمـــل الابتدائية","01","06","142","1420111","1","","DERB SADNI ARSAT BEN MSIK","درب السادني،عرصة ابن امسيك","20550","ALFIDA DERB SULTAN","الفداء مرس السلطان","0673274614","-  -  -","soussihoume@gmail.com","200","",false,false,0,true,false,false,false,false,false,false,false,0,"b792181",391702," FAJR HAMID"," الفجر حميد",true,true,false,false,false,false,false,false,false,false,false,false,false,false,false,false,false,true,true,true,true,true,true,true,true,false,false,true,false,true,"01","1970-10-01","1972-10-01",null,"",0,900,0,true,false,false,false,1,1,1,true,false,false,false,false,false,3759,2086,850,0,true,0,"1972-10-01","1992-07-01",false,0,false,0,null,null,false,null,"",false]
["01496A","82000P18","ECOLE PRIMAIRE ABDERRAHMAN  BEN HICHAM ","مدرسة عبد الرحمان بن هشام الابتدائية","01","06","142","1420111","1","","DERB SADNI ARSAT BEN MSIK HAY AMAL 1","درب السادني،عرصة ابن امسيك","20550","CASABLANCA","الدار البيضاء","0673274481","-  -  -","ABDELOUAHED.HAJJI@taalim.ma","200","",true,false,0,true,false,false,false,false,false,false,false,0,"x55618",316062," HAJJI ABDELOUAHED"," حاجي عبد الواحد",false,true,false,false,false,false,false,false,false,false,false,false,false,false,false,false,false,true,true,true,true,true,true,true,false,false,false,true,false,true,"01","1970-10-01","1990-09-01",null,"",0,1,1,true,false,false,false,1,1,1,true,false,false,false,false,false,4525,2400,950,0,false,0,null,null,false,0,false,0,null,null,false,null,"",false]
["01497B","82000P03","ECOLE PRIMAIRE RAHAL EL MESKINI","مدرسة رحال المسكيني الابتدائية","01","06","142","1420111","1","","AIN CHIFA 2 RUE 40 HAY EL FARAH","عين الشفاء 2 ،زنقة 40 ،حي الفرح","20550","Al Fida Derb Sultan","الفداء مرس السلطان","0600081685","-  -  -","","200","",false,false,0,true,false,false,false,false,false,false,false,0,"B94732",646629,"SAID ABDELFETTAH","سعيد عبد الفتاح",false,true,false,false,false,false,false,false,false,false,false,false,false,false,false,false,false,true,true,true,true,true,true,true,false,false,false,true,false,false,"01","1968-10-01","1968-10-01",null,"",0,2,0,true,false,false,false,1,1,1,true,false,false,false,false,false,8400,1733,561,3438,false,0,null,null,false,0,false,0,null,null,false,null,"",false]
["01498C","82000P04","ECOLE PRIMAIRE AL FKIH AL KANOUNI","مدرسة الفقيه الكانوني الابتدائية","01","06","142","1420111","1","","HAY EL FARAH RUE 60 N 40","حي الفرح 60 رقم 40","20550","Al Fida Derb Sultan","الفداء مرس السلطان","0673274709","-  -  -","mounir7@gmail.com","200","",false,false,0,true,false,false,false,false,false,false,false,0," f274550",237851,"mohamed hseini "," محمد حسيني",false,true,false,false,false,false,false,false,false,false,false,false,false,false,false,false,false,true,true,true,true,true,true,true,false,false,false,true,false,false,"01","1960-10-01","1962-10-01",null,"",0,1,0,true,false,false,false,1,1,1,true,false,false,false,false,false,4090,1790,49,3084,true,0,"1962-09-01","1992-07-01",false,0,false,0,null,null,false,null,"",false]
["01499D","82000P05","ECOLE PRIMAIRE IBN SINA","مدرسة ابن سينا الابتدائية","01","06","142","1420111","1","","HAY EL FARAH RUE 66 N 128","حي الفرح زنقة   66رقم 128","20550","Al Fida Derb Sultan","الفداء مرس السلطان","0673274724","","m.SAMIH03@GMAIL.COM","200","",false,false,0,true,false,false,false,false,false,false,false,0,"b541176",355815,"SAMIH MUSTAPHA","ساميح المصطفى",true,true,false,false,false,false,false,false,false,false,false,false,false,false,false,true,false,true,true,true,true,true,true,true,false,false,false,true,false,false,"01","1973-10-01","1975-09-16",null,"",0,1,0,true,false,false,false,1,1,1,true,false,false,false,false,false,2110,1218,135,0,false,0,null,null,false,0,false,0,null,null,false,null,"",false]
["01500E","82000P06","ECOLE PRIMAIRE MOHAMED EL BAROUDI","مدرسة محمد البارودي الابتدائية","01","06","142","1420111","1","","HAY OMAR BEN EL KHATTAB RUE 24","حي عمر بن الخطاب زنقة 24","20550","Al Fida Derb Sultan","الفداء مرس السلطان","0673274588","-  -  -","","200","",true,true,0,true,false,false,false,false,false,false,false,0," i125383",165546," FAROUKI AHMED","أحمد فروقي",false,true,false,false,false,false,false,false,false,false,false,false,false,false,false,false,false,true,true,true,true,true,true,true,false,false,false,true,false,true,"01","1950-10-01","1952-10-01",null,"",0,0,0,true,false,false,false,1,1,2,true,false,false,false,false,false,4406,1620,160,522,true,0,"1952-10-01","1992-07-01",false,0,false,0,null,null,false,null,"",false]
["01501F","82000P07","ECOLE PRIMAIRE ALLAL BEN ABDELLAH ","مدرسة علال بن عبد الله الابتدائية","01","06","142","1420111","1","","HAY OMAR BEN EL KHATTAB RUE 24","حي عمر بن الخطاب زنقة 24","20550","casa blanca","الدارالبيضاء","0673274611","-  -  -","Allalbahia@live.Fr","200","",true,true,0,true,false,false,false,false,false,false,false,0,"B 647694",882428,"LAGRAOUI    bahia","بهية لكراوي",true,true,false,false,false,false,false,false,false,false,false,false,false,false,false,false,false,true,true,true,true,true,true,true,false,true,false,true,false,true,"01","1950-10-01","1952-10-01",null,"",0,1,0,true,false,false,false,1,1,1,true,false,false,false,false,false,3824,567,427,863,true,0,"1952-10-01","1992-07-01",false,0,false,0,null,null,true,null,"",false]
["01502G","82000P08","ECOLE PRIMAIRE El kods","مدرسة القدس الابتدائية","01","06","142","1420111","1","","HAY AIN CHIFA 3 RUE 5","حي عين الشفاء 3 زنقة 5","20550","Al Fida Derb Sultan","الفداء مرس السلطان","075366461","-  -  -","","200","",false,false,0,false,false,false,false,false,false,false,false,0," ",0," "," ",false,true,false,false,false,false,false,false,false,false,false,false,false,false,false,false,false,true,true,true,true,false,true,true,false,false,false,true,false,false,"01","1976-09-16","1978-09-16","2009-09-01","1",0,2,0,true,false,false,false,1,1,1,true,false,false,false,false,false,4778,1050,286,1799,false,0,null,null,false,0,false,0,null,null,false,null,"",false]
["01503H","82000P09","ECOLE PRIMAIRE AIN CHIFA ","مدرسة عين الشفاء الابتدائية","01","06","142","1420111","1","","BOULEVARD LA GRANDE CEINTURE HAY EL FARAH","شارع الحزام الكبير حي الفرح","20550","Al Fida Derb Sultan","الفداء مرس السلطان","0600667446","-  -  -","AHMEDKARIM-RAFIK@hotmail.fr","200","",false,false,0,true,false,false,false,false,false,false,false,0,"b 258900",175037,"RAFIK AHMED","رفيق أحمد",true,true,false,false,false,false,false,false,false,false,false,false,false,false,false,true,false,true,true,true,true,true,true,true,true,true,false,true,false,true,"01","1976-09-16","1978-09-16",null,"",0,2,2,true,false,false,false,1,1,1,true,false,false,false,false,false,6635,1020,530,3677,false,0,null,null,false,0,false,0,null,null,false,null,"",false]
["01504J","82000P10","ECOLE PRIMAIRE EL MAKDISSI ","مدرسة المقديسي الابتدائية","01","06","142","1420111","1","","BOULEVARD TOURIA CHAOUI EL IDRISSIA 2 ","حي الإدريسية 2 شارع ثوريا الشاوي","20550","Al Fida MERS S","الفداء مرس السلطان","0522852836","","MAKDISSI2016@gmail.com","200","",false,false,0,true,false,false,false,false,false,false,false,0,"BE 92793",774093,"ABDESSAMAD MATAOUI","عبدالصمد معطاوي",true,true,false,false,false,false,false,false,false,false,false,false,false,false,false,false,false,true,true,true,true,false,true,true,true,false,false,true,false,false,"01","1974-10-10","1976-09-16",null,"",0,0,0,true,false,false,false,1,1,1,true,false,false,false,false,false,5425,4123,181,0,false,0,null,null,false,0,false,0,null,null,false,null,"",false]
["01505K","82000P11","ECOLE PRIMAIRE OUM HANI ","مدرسة أم هانئ الابتدائية","01","06","142","1420111","1","","AL IDRISSIA 2 RUE 26 N 53","حي الإدريسية 2 زنقة 26  رقم 53","20550","Al Fida Derb Sultan","الفداء مرس السلطان","0661056342","-  -  -","fa.fassih@gmail.com","200","",false,false,0,true,false,false,false,false,false,false,false,null,"B761941",334563,"FASSIH FATIHA","فتيحة فصيح",true,true,false,false,false,false,false,false,false,false,false,false,false,false,false,false,false,true,true,true,true,true,true,true,false,false,false,true,false,false,"01","1965-10-01","1967-10-01",null,"",0,0,0,true,false,false,false,1,1,2,true,false,false,false,false,false,3170,1863,383,0,false,0,null,null,false,0,false,0,null,null,false,null,"",false]
["01506L","82000P12","ECOLE PRIMAIRE IDRISSIA","مدرسة الإدريسية الابتدائية","01","06","142","1420111","1","","IDRISSIA 2 bd a","حي الإدريسية 2 شلرع أ","20550","Al Fida Derb Sultan","الفداء مرس السلطان","0673274761","-  -  -","ichou.hassan01@gmail.com","200","",false,false,0,true,false,false,false,false,false,false,false,0," b454772",315872,"ICHOU HASSAN","حسن إيشو",true,true,false,false,false,false,false,false,false,false,false,false,false,false,false,false,false,true,true,true,true,true,true,true,true,true,false,true,false,true,"01","1981-09-16","1983-09-16",null,"",0,0,0.1,true,false,false,false,1,1,1,true,false,false,false,false,false,8400,1800,120,1800,false,0,null,null,false,0,false,0,null,null,false,null,"",false]
["01507M","82000P13","ECOLE PRIMAIRE YATRIB","مدرسة يثرب الابتدائية","01","06","142","1420111","1","","BD LAGRANDE CEINTURE HAY OMAR BEN EL KHATAB","شارع الحزام الكبير حي عمر بن الخطاب","20550","Al Fida Derb Sultan","الفداء مرس السلطان","0661056349","-  -  -","azizMOST57@GMAIL.COM","200","",true,true,0,true,false,false,false,false,false,false,false,0,"T 44213",639966,"ABDELAZIZ EL MOSTAKIM","عبد العزيز المستقيم",false,true,false,false,false,false,false,false,false,false,false,false,false,false,false,true,false,true,true,true,true,false,true,true,true,false,false,true,false,true,"01","1982-09-16","1984-09-16",null,"",0,1,0,true,false,false,false,1,1,1,true,false,false,false,false,false,4403,1790,710,703,false,0,null,null,false,0,false,0,null,null,false,null,"",false]
["01508N","82000P19","AL KAIRAOUANE","القيروان","01","06","142","1420111","1","","BD MOUDIBOU KEITA","شارع موديبوكيتا","20550","Al Fida Derb Sultan","الفداء مرس السلطان","022-28-05-14","-  -  -","","200","",false,false,null,false,false,false,false,false,false,false,false,0," ",0," "," ",false,false,false,false,false,false,false,false,false,false,false,false,false,false,false,false,false,true,true,true,true,true,true,true,false,false,false,false,false,false,"01","1950-10-01","1952-10-01","2008-09-01","1",0,0,0,true,false,false,false,1,1,1,true,false,false,false,false,false,4144,2576,0,0,false,0,null,null,false,0,false,0,null,null,false,null,"",false]
["01509P","82000P20","ECOLE PRIMAIRE LALA HASNA ","مدرسة للا حسناء الابتدائية","01","06","142","1420111","1","","BD IDRISS MASSFIOUI RUE  SRAGNA","شارع ادريس المسفيوي زنقة السراغنة","20550","Al Fida Derb Sultan","الفداء مرس السلطان","0661056327","-  -  -"," BYA.ABDELKRIM@TAALIM.MA","200","",false,false,0,true,false,false,false,false,false,false,false,0,"B 592009",354849,"BYA   ABDELKRIM","عبد الكريم   بيا",true,true,false,false,false,false,false,false,false,false,false,false,false,false,false,false,false,true,true,true,true,true,true,true,false,false,false,true,false,false,"01","1962-10-01","1964-10-01",null,"",0,0.5,0,true,false,false,false,1,1,1,true,false,false,false,false,false,3473,1700,49,240,false,0,null,null,false,0,false,0,null,null,false,null,"",false]
["01510R","82000P21","ECOLE PRIMAIRE KOREA ","مدرسة القريعة الابتدائية","01","06","142","1420111","1","","DERB EL KOREA RUE IDRISS EL MESFIOUI  ","درب القريعة زنقة إدريس المسفيوي   الرقم 18","20550","casablanca","الدار البيضاء","0661056326","-  -  -","jamilaouardi1962@hotmail.live","200","",true,true,0,true,false,false,false,false,false,false,false,0," b691573",378597," ouardi jamila"," وردي جميلة",false,true,false,false,false,false,false,false,false,false,false,false,false,false,false,false,false,true,true,true,true,true,true,true,true,true,false,true,false,true,"01","1970-10-01","1972-10-01",null,"",0,0,0,true,false,false,false,1,1,1,true,false,false,false,false,false,4278,2877,784,617,false,0,null,null,false,0,false,0,null,null,false,null,"",false]
["01511S","82000P22","ECOLE PRIMAIRE MOUAOUIA IBN ABI SOUFIANE","مدرسة معاوية بن أبي سفيان الابتدائية","01","06","142","1420111","1","","DERB KOUREA RUE DRISS MESFIOUI","درب القريعة زنقة إدريس المسفيوي","20550","Al Fida Derb Sultan","الفداء مرس السلطان","0600078801","-  -  -","brahim.SAAD@tAALIM.MA","200","",true,true,0,true,false,false,false,false,false,false,false,0,"w53979",240776,"SAAD BRAHIM","سعد ابراهيم",false,true,false,false,false,false,false,false,false,false,false,false,false,false,false,true,false,true,true,true,true,true,true,true,false,false,false,true,false,false,"01","1973-10-01","1975-09-16",null,"",0,0,0,true,false,false,false,1,1,1,true,false,false,false,false,false,180,1000,217,0,false,0,null,null,false,0,false,0,null,null,false,null,"",false]
["01512T","82000P24","ECOLE PRIMAIRE AL MANSOUR ADDAHBI ","مدرسة المنصور الذهبي الابتدائية","01","06","142","1420111","1","","RUE SRAGHNA derb korea fida","درب القريعة زنقة السراغنة","20550","Al Fida Derb Sultan","الفداء مرس السلطان","0673274701","-  -  -","","200","",true,true,0,true,false,false,false,false,false,false,false,0,"B239904",698478,"AKIFI ABDELMAJID","عاكفى عبد المجيد",false,true,false,false,false,false,false,false,false,false,false,false,false,false,false,false,false,true,true,true,true,true,true,true,false,false,false,true,false,false,"01","1970-10-01","1973-10-01",null,"",0,50,100,true,false,false,false,1,1,1,true,false,false,false,false,false,1192,787,409,200,false,0,null,null,false,0,false,0,null,null,false,null,"",false]
["01513U","82000P23","ECOLE PRIMAIRE AL HAJJAJ ","مدرسة الحجاج الابتدائية","01","06","142","1420111","1","","RUE 55 DERB KOUREA","زنقة 55  درب القريعة","20550","Al Fida Derb Sultan","الفداء مرس السلطان","0673274663","-  -  -","marocschool@hotmail.fr","200","",false,false,0,true,false,false,false,false,false,false,false,0,"B 599625",334535,"SAYAN ABDELAZIZ","صيان عبد العزيز",false,true,false,false,false,false,false,false,false,false,false,false,false,false,false,false,false,true,true,true,true,false,true,true,false,false,false,true,false,false,"01","1959-10-01","1961-10-01",null,"",0,1,0,true,false,false,false,1,1,1,true,false,false,false,false,false,3647,1401,0,0,false,0,null,null,false,0,false,0,null,null,false,null,"",false]
["01514V","82000P25","ECOLE PRIMAIRE IBN ZAIDOUNE","مدرسة ابن زيدون الابتدائية","01","06","142","1420111","1","","BD EL FIDA RUE RHAMNA","شارع الفداء زنقة الرحامنة","20550","Al Fida Derb Sultan","الفداء مرس السلطان","0673274657","-  -  -","ABOUMOHSSINE001@GMAIL.COM","200","",false,false,0,true,false,false,false,false,false,false,false,0," I54514",315662,"ABDERRAHIM RHARIBI"," عبد الرحيم غريبي",false,true,false,false,false,false,false,false,false,false,false,false,false,false,false,true,false,true,true,true,true,true,true,true,true,true,false,true,false,true,"01","1959-10-01","1961-10-01",null,"",0,1,0.5,true,false,false,false,1,1,1,true,false,false,false,false,false,2712,760,100,785,false,0,null,null,false,0,false,0,null,null,false,null,"",false]
["01515W","82000P26","ECOLE PRIMAIRE IBN KHALDOUNE","مدرسة ابن خلدون الابتدائية","01","06","142","1420111","1","","BD EL FIDA","شارع الفداء","20550","Al Fida Derb Sultan","الفداء مرس السلطان","0673274646","-  -  -","abdou.yousra@live.fr","200","",false,false,0,true,false,false,false,false,false,false,false,0,"b571455",317742,"aBDELKHALEK ABDELILAH","عبد الخالق عبد الإله",false,true,false,false,false,false,false,false,false,false,false,false,false,false,false,false,false,true,true,true,true,false,true,true,false,false,false,true,false,true,"01","1938-10-01","1947-10-01",null,"",0,1,0,true,false,false,false,1,1,1,true,false,false,false,false,false,4518,1510,268,0,false,0,null,null,false,0,false,0,null,null,false,null,"",false]
["01516X","82000P27","ECOLE PRIMAIRE AL FIDA ","مدرسة الفداء الابتدائية","01","06","142","1420111","1","","BD EL FIDA","شارع الفداء","20550","Al Fida Derb Sultan","الفداء مرس السلطان","0673274638","-  -  -","ecolefida@hotmail.fr","200","",false,false,0,true,false,false,false,false,false,false,false,0,"B 424579",887129,"MITARI NOUFISSA","ميطاري نفيسة",false,true,false,false,false,false,false,false,false,false,false,false,false,false,false,false,false,true,true,true,true,true,true,true,false,true,false,true,false,true,"01","1947-01-01","1947-01-01",null,"",0,1,1,true,false,false,false,1,1,1,true,false,false,false,false,false,2000,500,0,0,false,0,null,null,false,0,false,0,null,null,false,null,"",false]
["01517Y","82000p28","ECOLE PRIMAIRE IBN BATOUTA ","مدرسة إبن بطوطة الابتدائية","01","06","142","1420111","1","","SIDI MAAROUF 4  RUE 41","سيدي معروف 4 زنقة 41","20550","Al Fida Derb Sultan","الفداء مرس السلطان","0673274720","-  -  -","ejouahrifatiha@yahoo.fr","200","",false,false,0,true,false,false,false,false,false,false,false,0,"B 512826",882614,"EJOUAHRI FATIHA","الجواهري فتيحة",false,true,false,false,false,false,false,false,false,false,false,false,false,false,false,false,false,true,true,true,true,true,true,true,false,false,false,true,false,false,"01","1964-10-01","1966-10-01",null,"",0,2,0,true,false,false,false,1,1,1,true,false,false,false,false,false,4954,1980,1112,0,false,0,null,null,false,0,false,0,null,null,false,null,"",false]
["01518Z","82000P29","ECOLE PRIMAIRE AL KADI AYAD","مدرسة القاضي عياض الابتدائية","01","06","142","1420111","1","","SIDI MAAROUF 5  RUE ERRAHHALI EL FAROUQI","سيدي معروف 5 زنقة الرحالي الفاروقي","20550","Al Fida Derb Sultan","الفداء مرس السلطان","0673274679","-  -  -","ecolealkadiayad@gmail.com","200","",false,false,0,true,false,false,false,false,false,false,false,0,"w56715",240659,"KHADIRI MOHAMMED","محمد خديري",true,true,false,false,false,false,false,false,false,false,false,false,false,false,false,true,false,true,true,true,true,false,true,true,true,false,false,true,false,true,"01","1966-10-01","1968-10-01",null,"",0,2,1,true,false,false,false,1,1,1,true,false,false,false,false,false,10300.549999999999,3938,1953,519,true,0,"1968-10-01","1992-07-01",false,0,false,0,null,null,false,null,"",false]
["01519A","82000P14","ECOLE PRIMAIRE BOUJDOUR ","مدرسة بوجدور الابتدائية","01","06","142","1420111","1","","RUE 50 SIDI MAAROUF 4","زنقة 50 سيدي معروف 4","20550","Al Fida Derb Sultan","الفداء مرس السلطان","0673274632","-  -  -","amina.wahi@gmail.com","200","",false,false,0,true,false,false,false,false,false,false,false,0," a545292",383087," wahi amina"," واحي أمينة",false,true,false,false,false,false,false,false,false,false,false,false,false,false,false,false,false,true,true,true,true,true,true,true,false,true,false,true,false,false,"01","1980-09-16","1982-09-16",null,"",0,0.8,0.5,true,false,false,false,1,1,1,true,false,false,false,false,false,8180,1873,2176,5860,false,0,null,null,false,0,false,0,null,null,false,null,"",false]
["01520B","82010P01","ECOLE PRIMAIRE ABDELLAH BEN MASSAOUD","مدرسة عبد الله بن مسعود الابتدائية","01","06","142","1420113","1","","1 RUE ABDELMOUMEN EL BALADIA","1 زنقة عبد المومن    البلدية","20500","Al Fida Derb Sultan","الفداء مرس السلطان","0673274466","-  -  -","temraoui.azzeddine@taalim.ma","200","",true,true,0,true,false,false,false,false,false,false,false,0,"B 759655",379234,"TEMRAOUI AZZEDDINE","تمراوي عز الدين",false,true,false,false,false,false,false,false,false,false,false,false,false,false,false,true,false,true,true,true,true,false,true,true,false,false,false,true,false,false,"01","1960-10-01","1962-10-01",null,"",0,0.5,0.5,true,false,false,false,1,1,1,true,false,false,false,false,false,2511,737,267,150,true,0,"1962-10-01","1992-07-01",false,0,false,0,null,null,false,null,"",false]
["01521C","82010P02","ECOLE PRIMAIRE PLACE DAMAS","مدرسة ساحة دمشق الابتدائية","01","06","142","1420113","1","","DERB ELBALADIA PLACE DAMAS","درب البلدية ساحة دمشق","20500","Al Fida Derb Sultan","الفداء مرس السلطان","0661056347","-  -  -","M.elhokmi@hotmail.fr","200","",true,true,0,true,false,false,false,false,false,false,false,0," b448391",316053," elhokmi mohamed"," الحكمي محمد",false,true,false,false,false,false,false,false,false,false,false,false,false,false,false,false,false,true,true,true,true,true,true,true,false,false,false,true,false,false,"01","1969-10-01","1971-10-01",null,"",0,2,2,true,false,false,false,1,1,1,true,false,false,false,false,false,1105,723,0,0,false,0,null,null,false,0,false,0,null,null,false,null,"",false]
["01522D","82010P03","ECOLE PRIMAIRE OMAR MAKRI","مدرسة عمر مكري الابتدائية","01","06","142","1420113","1","","RUE EL MAAMORA HAY LAAYOUNE","زنقة المعمورة حي العيون","20500","Al Fida Derb Sultan","الفداء مرس السلطان","0673274625","-  -  -","","200","",true,true,0,true,false,false,false,false,false,false,false,0,"bh15184",355661,"belahmer samira","سميرة بلحمر",false,true,false,false,false,false,false,false,false,false,false,false,false,false,false,false,false,true,true,true,true,false,true,true,false,false,false,true,false,true,"01","1954-10-01","1956-10-01",null,"",0,1,0,true,false,false,false,1,1,1,true,false,false,false,false,false,2255,600,200,220,true,0,"1956-10-01","1992-07-01",false,0,false,0,null,null,false,null,"",false]
["01523E","82010P04","ECOLE PRIMAIRE ANKARA ","مدرسة أنقرة الابتدائية","01","06","142","1420113","1","","RUE MAAMORA N 103","زنقة المعمورة رقم 103","20500","Al Fida Derb Sultan","الفداء مرس السلطان","0661936940","-  -  -","fouzel0066@gmail.com","200","",true,true,0,true,false,false,false,false,false,false,false,0,"B500406",338164,"FOUZIA ELMOKHTARI","المختاري فوزية",false,true,false,false,false,false,false,false,false,false,false,false,false,false,false,false,false,true,true,true,true,true,true,true,false,false,false,true,false,false,"01","1954-10-01","1956-10-01",null,"",0,1,0,true,false,false,false,1,1,1,true,false,false,false,false,false,2000,770,530,0,true,0,"1956-10-01","1992-07-01",false,0,false,0,null,null,false,null,"",false]
["01524F","82010P05","ECOLE PRIMAIRE IBN AL MOUATAZ","مدرسة ابن المعتز الابتدائية","01","06","142","1420113","1","","DERB BOUCHENTOUF RUE 3940","درب بوشنتوف زنقة  39-  40","20500","Al Fida Derb Sultan","الفداء مرس السلطان","0673274719","-  -  -","ACHAKA.MOHAMMED@TAALIM.MA","200","",true,true,0,true,false,false,false,false,false,false,false,0,"B156178",110320,"ACHAKA MOHAMMED","عشاقة محمد",true,true,false,false,false,false,false,false,false,false,false,false,false,false,false,false,false,true,true,true,true,false,true,true,true,false,false,true,false,false,"01","1945-10-01","1947-10-01",null,"",0,1,0,true,false,false,false,1,1,1,true,false,false,false,false,false,3803,2048,157,0,true,0,"1947-10-01","1992-07-01",false,0,false,0,null,null,false,null,"",false]
["01525G","82010P06","ECOLE PRIMAIRE AL OUAHDA","مدرسة الوحدة الابتدائية","01","06","142","1420113","1","","DERB BOUCHENTOUF RUE 70","درب بوشنتوف الزنقة 70","20500","Al Fida Derb Sultan","الفداء مرس السلطان","0673274610","-  -  -","","200","",true,true,0,true,false,false,false,false,false,false,false,0,"B699842",317597,"CHERKI DEHLI","الشرقي دهلي",false,true,false,false,false,false,false,false,false,false,false,false,false,false,false,false,false,true,true,true,true,false,true,true,false,true,false,true,false,true,"01","1970-10-01","1972-10-01",null,"",0,1,0,true,false,false,false,1,1,1,true,false,false,false,false,false,1502,994,99,40,false,0,null,null,false,0,false,0,null,null,false,null,"",false]
["01526H","82010P07","ECOLE PRIMAIRE SAAD BNOU ABI WAKKAS","مدرسة سعد بن أبي وقاص الابتدائية","01","06","142","1420113","1","","DERB EL MITRE  RUE 10  BOUCHENTOUF","درب المتر الزنقة 10 بوشنتوف","20500","Al Fida Derb Sultan","الفداء مرس السلطان","0661056344","-  -  -","","200","",true,true,0,true,false,false,false,false,false,false,false,0," B670685",356693," CHAHDALI AHMED"," شهداني أحمد",true,true,false,false,false,false,false,false,false,false,false,false,false,false,false,true,false,true,true,true,true,false,true,true,true,true,false,true,false,true,"01","1960-10-01","1962-10-01",null,"",0,1,0,true,false,false,false,1,1,1,true,false,false,false,false,false,3710,3200,510,0,false,0,null,null,false,0,false,0,null,null,false,null,"",false]
["01527J","82010P08","ECOLE PRIMAIRE SABAA","مدرسة سبـــأ الابتدائية","01","06","142","1420113","1","","AVENUE NADOR L ERMITAGE","شارع الناظور لارميطاج","20500","Al Fida Derb Sultan","الفداء مرس السلطان","0661056345","-  -  -","hessawti@hotmail.fr","200","",false,false,0,true,false,false,false,false,false,false,false,0,"B477697",338043,"ESSAWTI HABIBA","الصوتي حبيبة",false,true,false,false,false,false,false,false,false,false,false,false,false,false,false,false,false,true,true,true,true,false,false,true,false,false,false,true,false,false,"01","1969-10-01","1971-10-01",null,"",0,1,0,true,false,false,false,1,1,1,true,false,false,false,false,false,1789,1084,127,0,false,0,null,null,false,0,false,0,null,null,false,null,"",false]
["01528K","82010P09","ECOLE PRIMAIRE MOULAY ISMAIL ","مدرسة مولاي إسماعيل الابتدائية","01","06","142","1420113","1","","RUE SAINT LAURENT","زنقة سان لوران","20500","Al Fida Derb Sultan","الفداء مرس السلطان","0661056332","-  -  -","ABDELILAH.ELKARD@gmail.com","200","",false,false,0,true,false,false,false,false,false,false,false,0," BE 302351",355782,"EL KARD  ABDEL ILAH","عبدالاله  الكرد",true,true,false,false,false,false,false,false,false,false,false,false,false,false,false,false,false,true,true,true,true,true,true,true,false,false,false,true,false,false,"01","1959-10-01","1961-10-01",null,"",0,1,0,true,true,false,false,1,1,1,true,false,false,false,false,false,3245,1445,0,240,false,0,null,null,false,0,false,0,null,null,false,null,"",false]
["01529L","82010P10","ECOLE PRIMAIRE EL MAZRAA GARCONS","مدرسة المزرعة بنين الابتدائية","01","06","142","1420113","1","","16 RUE EL MANJRA DERB EL KABIR","16 زنقة المنجرة درب الكبير","20500","Al Fida Derb Sultan","الفداء مرس السلطان","0673274703","-  -  -","almazraa2005@hotmail.fr","200","",true,true,0,true,false,false,false,false,false,false,false,0,"Q47837",172096,"simouh el mostafa","سموح المصطفى",true,true,false,false,false,false,false,false,false,false,false,false,false,false,false,false,false,true,true,true,true,true,true,true,true,false,false,true,false,true,"01","1950-10-01","1952-10-01",null,"",0,0,1.5,true,false,false,false,1,1,1,true,false,false,false,false,false,2599.7199999999998,968,16,0,true,0,"1952-10-01","1992-07-01",false,0,false,0,null,null,false,null,"",false]
["01530M","82010P11","ECOLE PRIMAIRE EL MAZRAA FILLES","مدرسة المزرعة بنات الابتدائية","01","06","142","1420113","1","","DERB EL KABIR RUE LA CROIX N 52","درب الكبير زنقة لاكروا رقم 52","20500","Al Fida Derb Sultan","الفداء مرس السلطان","0673274702","-  -  -","fartoutmohamed@yahoo.fr","200","",true,true,0,true,false,false,false,false,false,false,false,0," be 47316",383669," fartout mohamed"," فرتوت محمد ",false,true,false,false,false,false,false,false,false,false,false,false,false,false,false,true,false,true,true,true,true,true,true,true,true,false,false,true,false,true,"01","1950-10-01","1952-10-01",null,"",0,0,1,true,false,false,false,1,1,1,true,false,false,false,false,false,2395,977,30,0,true,0,"1952-10-01","1992-07-01",false,0,false,0,null,null,false,null,"",false]
["01531N","82000P15","ECOLE PRIMAIRE IBN ARABI GARçONS","مدرسة ابن عربي بنين الابتدائية","01","06","142","1420113","1","","HAY ETTISSIRE DERB EL MADANIA ROUTE OULAD ZIANE","حي التيسير درب المدنية طريق أولاد زيان","20500","Al Fida Derb Sultan","الفداء مرس السلطان","022813590","-  -  -","","200","",false,false,0,false,false,false,false,false,false,false,false,0," ",0," "," ",false,false,false,false,false,false,false,false,false,false,false,false,false,false,false,false,false,true,true,true,true,true,true,true,false,false,false,false,false,false,"01","1960-10-01","1962-10-01","2008-09-01","1",0,1,0,true,false,false,false,1,1,1,true,false,false,false,false,false,9619.6,1710,2134.75,4195.55,false,0,null,null,false,0,false,0,null,null,false,null,"",false]
["01532P","82000P16","ECOLE PRIMAIRE IBN ARABI ","مدرسة ابن عربي الابتدائية","01","06","142","1420113","1","","ROUTE OULAD ZIANE HAY ETTISSIRE DERB EL MADANIA","حي التيسير درب المدنية طريق أولاد زيان","20500","Al Fida Derb Sultan","الفداء مرس السلطان","0673274727","-  -  -","mounir7@gmail.com","200","",true,true,0,true,false,false,false,false,false,false,false,0,"b463781",887127,"laasli fatima","فاطمة العسلي",false,true,false,false,false,false,false,false,false,false,false,false,false,false,false,false,false,true,true,true,true,true,true,true,false,false,false,true,false,false,"01","1960-10-01","1962-12-17",null,"",0,1,0,true,false,false,false,1,1,1,true,false,false,false,false,false,4943,1709,1711,73,false,0,null,null,false,0,false,0,null,null,false,null,"",false]
["01533R","82000P17","ECOLE PRIMAIRE IBN TACHFINE GARCONS","مدرسة إبن تاشفين بنين الابتدائية","01","06","142","1420113","1","","ROUTE OULAD ZIANE HAY ETTISSIRE RUE 10","حي التيسير درب المدنية طريق أولاد زيان رقم 10","20500","Al Fida Derb Sultan","الفداء مرس السلطان","022-81-36-53","-  -  -","","200","",false,false,0,false,false,false,false,false,false,false,false,0," ",0," "," ",false,false,false,false,false,false,false,false,false,false,false,false,false,false,false,false,false,true,true,true,true,false,true,true,false,false,false,false,false,false,"01","1960-10-01","1962-10-01","2008-09-01","1",0,1,0,true,false,false,false,1,1,1,true,false,false,false,false,false,3366.85,487.78,558.4,951.67,false,0,null,null,false,0,false,0,null,null,false,null,"",false]
["01534S","82000P30","ECOLE PRIMAIRE IBN TACHFINE FILLES","مدرسة إبن تاشفين بنات الابتدائية","01","06","142","1420113","1","","ROUTE OULAD ZIANE HAY ETTISSIRE  N 10","حي التيسير درب المدنية طريق أولاد زيان رقم 10","20500","Al Fida Derb Sultan","الفداء مرس السلطان","022-81-24-84","-  -  -","","200","",false,false,0,false,false,false,false,false,false,false,false,0," ",0," "," ",false,false,false,false,false,false,false,false,false,false,false,false,false,false,false,false,false,true,true,true,true,true,true,true,false,false,false,false,false,false,"01","1960-10-01","1962-10-01","2008-09-01","1",0,1,0,true,false,false,false,1,1,1,true,false,false,false,false,false,3823.12,312,16,2303,true,0,"1962-10-01","1992-07-01",false,0,false,0,null,null,false,null,"",false]
["01535T","82000P01","ECOLE PRIMAIRE OUM EL BANINE ","مدرسة أم البنين الابتدائية","99","06","142","1420113","1","","HAY EL YOUSSOUFIA RUE 80","حي اليوسفية الزنقة 80","20500","Al Fida Derb Sultan","الفداء مرس السلطان","0661056341","-  -  -","janahsaida@gmail.com","200","",true,true,0,true,false,false,false,false,false,false,false,0,"BH101243",377790,"JANAH SAIDA","جناح سعيدة",false,true,false,false,false,false,false,false,false,false,false,false,false,false,false,false,false,true,true,true,true,false,true,true,false,false,false,true,false,false,"99","1958-10-01","1960-10-01",null,"",0,1,1,true,false,false,false,1,1,1,true,false,false,false,false,false,421,609,21,0,false,0,null,null,false,0,false,0,null,null,false,null,"",false]
["01536U","82020P01","ECOLE PRIMAIRE MOUSSA IBN NOUSSAIR","مدرسة موسى بن نصير الابتدائية","01","06","142","1420113","1","","RUE EL harit el mouhassibi mers sultan","زنقة الحارث المحاسبي مرس السلطان ","20500","Al Fida Derb Sultan","الفداء مرس السلطان","0661056335","-  -  -","kssili.mustapha@gmail.com","200","",false,false,0,true,false,false,false,false,false,false,false,0,"B573994",390990,"kssili mUSTAPHA","المصطفى اقصلي",false,true,false,false,false,false,false,false,false,false,false,false,false,false,false,false,false,true,true,true,true,true,true,true,false,false,false,true,false,true,"01","1922-10-01","1924-10-01",null,"",0,0.2,0.5,true,false,false,false,1,1,1,true,false,false,false,false,false,3281,880,817,803,false,0,null,null,false,0,false,0,null,null,false,null,"",false]
["01537V","82020P03","CENTRE DE FORMATION CONTINUE ET INSPECTION ABI TAMMAM "," مركز التكوين المستمر و المفتشية الإقليمية أبي تمام ","01","06","142","1420113","1","","RUE AMSTERDAM","زنقة أمستردام","20500","CASABLANCA","الدار البيضاء","0673274482","-  -  -","","801","18235V",false,false,0,false,false,false,false,false,false,false,false,0," ",0," "," ",false,false,false,false,false,false,false,false,false,false,false,false,false,false,false,false,false,false,false,false,false,false,false,false,false,false,false,false,false,false,"01","1959-10-01","1961-10-01",null,"1",0,0,0,true,false,false,false,1,1,1,true,false,false,false,false,false,3200,1860,240,0,false,0,null,null,false,0,false,0,null,null,false,null,"",false]
["01538W","82020P04","ECOLE PRIMAIRE ABI DAR EL GHIFARI","مدرسة أبي ذر الغفاري الابتدائية","01","06","142","1420113","1","","HAY EDDAKHLA RUE ECHAARANI","حي الداخلة زنقة الشعراني","20500","Al Fida Derb Sultan","الفداء مرس السلطان","0673274738","-  -  -","","200","",true,true,0,true,false,false,false,false,false,false,false,0," B723501",774371," kadrou abdelhak"," قادرو عبد الحق",true,true,false,false,false,false,false,false,false,false,false,false,false,false,false,false,false,true,true,true,true,false,true,true,false,false,false,true,false,false,"01","1945-10-01","1947-10-01",null,"",0,0,0,true,false,false,false,1,1,1,true,false,false,false,false,false,2496,2209,0,0,false,0,null,null,false,0,false,0,null,null,false,null,"",false]
["01539X","82020P05","ECOLE PRIMAIRE JAMILA EL KAIRAWANIA","مدرسة جميلة القيروانية الابتدائية","01","06","142","1420113","1","","RUE EL MASJID EL KABIR DERB EL AHBASSE","زنقة المسجد الكبير حي الأحباس","20500","Al Fida Derb Sultan","الفداء مرس السلطان","0673274764","-  -  -","","200","",true,true,0,false,false,false,false,false,false,false,false,0," ",0," "," ",false,true,false,false,false,false,false,false,false,false,false,false,false,false,false,false,false,true,true,true,true,true,true,true,false,false,false,true,false,false,"01","1940-10-01","1942-10-01",null,"",0,0,0,true,false,false,false,1,1,1,true,false,false,false,false,false,2903,2399,50,0,false,0,null,null,false,0,false,0,null,null,false,null,"",false]
["01540Y","82020P06","ECOLE PRIMAIRE ENNABIGHA","مدرسة النابغة الابتدائية","01","06","142","1420113","1","","2RUE LYSER","2  زنقة ليزير","20500","Al Fida Derb Sultan","الفداء مرس السلطان","0661056352","-  -  -","ennabigha@hotmail.com","200","",false,false,0,true,false,false,false,false,false,false,false,0,"j224730",173252,"MOHAMED KANDY","محمد كندي",false,true,false,false,false,false,false,false,false,false,false,false,false,false,false,false,false,true,true,true,true,false,true,true,false,true,false,true,false,true,"01","1953-10-01","1955-10-01",null,"",0,1,0,true,false,false,false,1,1,1,true,false,false,false,false,false,4086,1661,60,0,true,0,"1956-10-01","1992-07-01",false,0,false,0,null,null,false,null,"",false]
["01541Z","82020P07","ECOLE PRIMAIRE LALA ASMAA ","مدرسة للا أسماء الابتدائية","01","06","142","1420113","1","","6 RUE LYSER","6 زنقة ليزير","20500","Al Fida Derb Sultan","الفداء مرس السلطان","022-28-54-94","-  -  -","mounir7@gmail.com","200","",false,false,0,false,false,false,false,false,false,false,false,0," ",0," "," ",false,false,false,false,false,false,false,false,false,false,false,false,false,false,false,false,false,true,true,true,true,true,true,true,false,false,false,false,false,false,"01","1957-10-01","1959-10-01","2008-09-01","1",0,1,0,true,false,false,false,1,1,1,true,false,false,false,false,false,4560,1190,1200,0,true,0,"1959-10-01","1992-07-01",false,0,false,0,null,null,false,null,"",false]
["01542A","82000S13","COLLEGE ZINEB ANNAFZAOUIA","الثانوية الإعدادية زينب النفزاوية","01","06","142","1420111","1","","HAY MIMOUNA IDRISSIA 4","حي ميمونة الإدريسية 4","20550","al fida derb sultan","الفداء مرس السلطان","0522815165","-  -  -","ABCHIR2@HOTMAIL.fr","300","",false,false,0,true,false,false,false,false,false,true,false,1,"b243499",232344,"aamoum smail","أعموم اسماعيل",false,false,false,true,false,false,false,false,false,false,false,false,false,false,false,false,false,true,true,true,true,true,true,false,false,false,false,true,false,false,"01","1966-10-01","1968-10-01",null,"",0,0,1,true,false,false,false,1,1,1,true,false,false,false,false,false,13000,5831,642,200,false,0,null,null,false,0,false,0,null,null,false,null,"",false]
["01543B","82000S14","COLLEGE IBN MESKAOUAIH","الثانوية الإعدادية ابن مسكويه","01","06","142","1420111","1","","IDRISSIA 2 HAY MIMOUNA","حي ميمونة الإدريسية 2","20550","al fida derb sultan","الفداء مرس السلطان","0522815310","-  -  -","","300","",false,false,0,true,false,false,false,false,false,true,false,1," b156212",177981,"kammah larbi","العربي قماح",false,false,false,true,false,false,false,false,false,false,false,false,false,false,false,false,false,true,true,true,true,true,true,false,false,false,false,true,false,false,"01","1975-09-16","1977-09-16",null,"",0,0,1,true,false,false,false,1,1,1,true,false,false,false,false,false,12596,8818,1246,1063,false,0,null,null,false,0,false,0,null,null,false,null,"",false]
["01544C","82000S15","COLLEGE SMARA","الثانوية الإعدادية السمارة","01","06","142","1420111","1","","IDRISSIA 2 BOULEVARD B","الادريسية 2 شارع ب","20550","al fida mers sultan","الفداء مرس السلطان","0522815173","-  -  -","Smara.college@yahoo.fr","300","",false,false,0,true,false,false,false,false,false,true,false,1,"B 161526",310765,"megloud lhassan","الحسن مكلود",false,false,false,true,false,false,false,false,false,false,false,false,false,false,false,false,false,true,true,true,true,true,true,false,false,false,false,true,false,false,"01","1982-09-16","1986-09-05",null,"",0,0,1,true,false,false,false,1,1,1,true,false,false,false,false,false,17000,1200,700,500,false,0,null,null,false,0,false,0,null,null,false,null,"",false]
["01545D","82000S05","COLLEGE MARIAM AL FIHRIA","الثانوية الإعدادية مريم الفهرية","01","06","142","1420111","1","","angle rue SRAGHNA et driss el massfioui","زاوية زنقة السراغنة و ادريس المسفيوي","20550","al fida derb sultan","الفداء مرس السلطان","0522280850","-  -  -","college.Maryam@yahoo.fr.","300","",true,true,0,true,false,false,false,false,false,true,false,2," e11926",953023,"NAJJAR AMINA","أمينة نجار ",false,false,false,true,false,false,false,false,false,false,false,false,false,false,false,false,false,true,true,true,true,true,true,false,false,true,false,true,false,true,"01","1950-10-01","1952-10-01",null,"",0,0,1,true,false,false,false,1,1,1,true,false,false,false,true,false,6450,2093,452,995,false,0,null,null,false,0,false,0,null,null,false,null,"",false]
["01546E","82000S06","COLLEGE AL JAHID","الثانوية الإعدادية الجاحظ","01","06","142","1420111","1","","68 derb chorfa  tolba","درب الشرفاء و الطلبة الزنقة 68","20550","al fida derb sultan","الفداء مرس السلطان","0522281085","-  -  -","","300","",true,true,0,true,false,false,false,false,false,true,false,3,"B 570873",886374,"gnaoui amina","كناوي أمينة",false,false,false,true,false,false,false,false,false,false,false,false,false,false,false,false,false,true,true,true,true,true,true,false,false,false,false,true,false,true,"01","1966-10-01","1968-10-01",null,"",0,-1,-1,true,false,false,false,1,1,1,true,false,false,false,false,false,3940,1340,0,600,false,0,null,null,false,0,false,0,null,null,false,null,"",false]
["01547F","82000S07","COLLEGE MOHAMED VI","الثانوية الإعدادية محمد السادس","01","06","142","1420111","1","","7 RUE TRIPOLI","زنقة 7 حي طرابلس","20550","Al Fida Derb Sultan","الفداء مرس السلطان","022282204","-  -  -","","300","",false,false,0,false,false,false,false,false,false,true,false,3,"COL",0," "," ",false,false,false,false,false,false,false,false,false,false,false,false,false,false,false,false,false,true,true,true,true,true,true,false,false,false,false,false,false,false,"01","1961-10-01","1963-10-01","2009-07-31","5",0,0,0,true,false,false,false,1,1,1,true,false,false,false,false,false,8954,3860,0,0,false,0,null,null,false,0,false,0,null,null,false,null,"",false]
["01548G","82000S08","LYCEE MOHAMED VI"," الثانوية التأهيلية محمد السادس","01","06","142","1420111","1","","HAY TRIPOLI RUE 7","حي طرابلس زنقة 7","20550","Al Fida Derb Sultan","الفداء مرس السلطان","0522281800","-  -  -","lyceem6fida1414@gmail.com","400","",false,false,0,true,false,false,false,false,false,false,false,2,"b736730",395927,"brahim talib","إبراهيم طالب",false,false,false,false,false,true,false,false,false,false,false,false,false,false,false,false,false,true,true,true,true,true,true,false,false,true,true,true,false,true,"01","1961-10-01","2009-09-01",null,"",0,1,0.5,true,false,false,false,1,1,1,true,false,false,false,false,false,13854,4911,0,120,false,0,null,null,false,0,false,0,null,null,false,null,"",false]
["01549H","82000S09","COLLEGE AL IMAM ALI","الثانوية الإعدادية الإمام علي","01","06","142","1420111","1","","BD MOUDIBOU KEITA AIN ESSEK","شارع موديبوكيتا عين الصك","20520","AL FIDA DERB SULTAN","الفداء مرس السلطان","0522283938","-  -  -","alaouisma@hotmail.fr","300","",true,true,0,true,false,false,false,false,false,false,false,1,"b 580382",340262,"alaoui maach my smail","علوي معاش مولاي اسماعيل",false,false,false,true,false,false,false,false,false,false,false,false,false,false,false,false,false,true,true,true,true,true,true,false,false,true,false,true,false,true,"01","1982-09-16","1984-09-16",null,"",0,0,500,true,false,false,false,1,1,1,true,false,false,false,false,false,7032,250,145,0,false,0,null,null,false,0,false,0,null,null,false,null,"",false]
["01550J","82000S10","COLLEGE AL GHAZALI","الثانوية الإعدادية الغزالي","01","06","142","1420111","1","","SIDI MAAROUF 3  BD MOUDIBOU KEITA","سيدي معروف 3 شارع موديبوكيتا","20550","Al Fida Derb Sultan","الفداء مرس السلطان","0522280245","","college-alghazali-fida-merssultan@outlook.fr","300","",false,false,0,true,false,false,false,false,false,true,false,1,"b558418",306589,"belaassal azeddine","عزالدين بلعسل",false,false,false,true,false,false,false,false,false,false,false,false,false,false,false,false,false,true,true,true,true,true,true,false,false,true,false,true,false,true,"01","1967-10-10","1967-10-10",null,"",0,0,0.5,true,false,false,false,1,1,1,true,false,false,false,false,false,4350,700,105,0,false,0,null,null,false,0,false,0,null,null,false,null,"",false]
["01551K","82000S11","COLLEGE AL ANDALOUS","الثانوية الإعدادية الأندلس","01","06","142","1420111","1","","HAY EL MASJID RUE H","زنقة ه حي المسجد","20550","Al Fida Derb Sultan","الفداء مرس السلطان","0522280026","","andalous-fida-mersultan@outlook.fr","300","",false,false,0,false,false,false,false,false,false,true,true,1," ",0," "," ",false,false,false,true,false,false,false,false,false,false,false,false,false,false,false,false,false,true,true,true,true,true,true,false,false,true,true,true,false,true,"01","1976-09-16","1978-09-16",null,"",0,0,0,true,false,false,false,1,1,1,true,false,false,false,false,false,14613,400,2664,3776,true,240,"1977-09-05",null,true,0,true,240,"1977-09-05",null,false,null,"",false]
["01552L","82010S03","COLLEGE ATTAHADI","الثانوية الإعدادية التحدي","01","06","142","1420113","1","","DERB El mITRE 2  RUE 11  L ERMITAGE","درب المتر 2 زنقة 11 لارميطاج","20500","Al Fida mers Sultan","الفداء مرس السلطان","0522280297","","","300","",true,true,0,true,false,false,false,false,false,true,false,1,"b581132",398266,"bahjaji abdelfetah","بهجاجي عبد الفتاح",false,false,false,true,false,false,false,false,false,false,false,false,false,false,false,false,true,true,true,true,true,true,true,false,false,false,false,true,false,false,"01","1962-10-01","1964-10-01",null,"",0,0,0,true,false,false,false,1,1,1,true,false,false,false,false,false,16690,1295,555,0,false,0,null,null,false,0,false,0,null,null,false,null,"",false]
["01553M","82010S04","COLLEGE AL MANSOUR ADDAHBI","الثانوية الإعدادية المنصور الذهبي","01","06","142","1420113","1","","DERB EL KABIR RUE LA CROIX","درب الكبير شارع لاكروى","20500","Al Fida Derb Sultan","الفداء مرس السلطان","0522801043","-  -  -","amahran@hotmail.fr","300","",true,true,0,true,false,false,false,false,false,false,false,2,"bh84066",55230," AMAHRANE FATIHA","أمهران فتيحة  ",false,false,false,true,false,false,false,false,false,false,false,false,false,false,false,false,true,true,true,true,true,true,true,false,false,false,false,true,false,false,"01","1964-10-01","1966-10-01",null,"",0,0.08,0.45,true,false,false,false,1,1,1,true,false,false,false,false,false,7087.03,1048.5,171,4290.8,false,0,null,null,false,0,false,0,null,null,false,null,"",false]
["01554N","82010S05","COLLEGE MOHAMED CHIKH","الثانوية الإعدادية محمد الشيخ","01","06","142","1420113","1","","DERB EL KABIR  RUE almahatta","درب الكبير زنقة المحطة","20500","Al Fida Derb Sultan","الفداء مرس السلطان","0522832535","-  -  -","abdellatif.elbouhali@taalim.ma","300","",true,true,0,true,false,false,false,false,false,true,false,1,"be 674898",1052126,"el bouhali abdellatif","عبد اللطيف البهالي",false,false,false,true,false,false,false,false,false,false,false,false,false,false,false,false,true,true,true,true,true,true,true,false,false,true,true,true,false,true,"01","1964-10-01","1978-10-01",null,"",0,0,1.5,true,false,false,false,1,1,1,true,false,false,false,false,false,4725,2210,200,0,false,0,null,null,false,0,false,0,null,null,false,null,"",false]
["01555P","82000S12","COLLEGE LAAYOUNE","الثانوية الإعدادية العيون","01","06","142","1420113","1","","DERB EL KABIR  RUE LA CROIX","درب الكبير شارع لاكروى","20500","Al Fida Derb Sultan","الفداء مرس السلطان","0522812065","-  -  -","hamidbenazizi58@yahoo.ma","300","",true,true,0,true,false,false,false,false,false,true,false,1,"B 553168",178464,"abdelhamid boukhali","عبد الحميد بوخلي",false,false,false,true,false,false,false,false,false,false,false,false,false,false,false,false,true,true,true,true,true,true,true,false,true,false,true,true,false,true,"01","1980-09-16","1982-09-16",null,"",0,1.6,0.45,true,false,false,false,1,1,1,true,false,false,false,false,false,3456,700,896,160,false,0,null,null,false,0,false,0,null,null,false,null,"",false]
["01556R","82020S03","COLLEGE RABIAA AL ADAOUIA","الثانوية الإعدادية رابعة العدوية","01","06","142","1420113","1","","RUE ELMASJID N 2 al ahbas casablanca","  . الأحباس .2 .زنقة المسجد","20500","Al Fida Derb Sultan","الفداء مرس السلطان","0522305319","-  -  -","LCrabiaddawia@gmail.com","300","",true,true,0,true,false,false,false,false,false,true,false,2,"b599920",874279,"soumia chkhayess","سومية اشخايص",false,false,false,true,false,false,false,false,false,false,false,false,false,false,false,false,false,true,true,true,true,true,true,false,false,false,false,true,false,false,"01","1940-10-01","1942-10-01",null,"",0,0,0,true,false,false,false,1,1,1,true,false,false,false,false,false,3034,450,144,450,false,0,null,null,false,0,false,0,null,null,false,null,"",false]
["01557S","82020S04","COLLEGE AL KASTALANI","الثانوية الإعدادية القسطلاني","01","06","142","1420113","1","","182 RUE AL IMAM AL KASTALANI","182 شارع القسطلاني حي الداخلة رقم ","20500","Al Fida Mers Sultan","الفداء مرس السلطان","0522304539","-  -  -","massitahmed@live.com","300","",true,true,0,true,false,false,false,false,false,true,false,1,"d111713",684250,"massit ahmed","احمد مسيط",false,false,false,true,false,false,false,false,false,false,false,false,false,false,false,false,false,true,true,true,true,true,true,false,false,false,false,true,false,false,"01","1924-10-01","1926-10-01",null,"",0,0,1,true,false,false,false,1,1,1,true,false,false,false,false,false,3494,1672,0,0,false,0,null,null,false,0,false,0,null,null,true,null,"",false]
["01558T","82020S05","COLLEGE IBN TACHFINE","الثانوية الإعدادية ابن تاشفين","01","06","142","1420113","1","","153 RUE LAHCEN OUIDDER","153 زنقة لحسن اويدار","20500","Al Fida Derb Sultan","الفداء مرس السلطان","0522306886","-  -  -","fouadrachida63@gmail.com","300","",false,false,0,true,false,false,false,false,false,true,false,1,"b599351",888005,"rachida fouad","رشيدة فؤاد",false,false,false,true,false,false,false,false,false,false,false,false,false,false,false,false,false,true,true,true,true,true,true,false,false,false,false,true,false,false,"01","1949-10-01","1951-10-01",null,"",0,0,1,true,false,false,false,1,1,1,true,false,false,false,false,false,3545,2100,1,0,false,0,null,null,false,0,false,0,null,null,true,null,"",false]
["01559U","82020S06","COLLEGE KHNATA BENT BEKKAR","الثانوية الإعدادية اخناثة بنت بكار","01","06","142","1420113","1","","174 RUE EL HADJ OMAR RIFFI","174  زنقة الحاج عمر الريفي","20490","Al Fida Mers Sultan","الفداء مرس السلطان","0522301215","-  -  -","collegekhnata@yahoo.fr","300","",false,false,0,true,false,false,false,false,false,true,false,1,"B94601",217787," MEGLOUD MOHAMED","مكلود محمد",false,false,false,true,false,false,false,false,false,false,false,false,false,false,false,false,false,true,true,true,true,true,true,false,false,false,true,true,false,true,"01","1959-10-01","1961-10-01",null,"",0,0,1,true,false,false,false,4,4,1,true,true,true,false,false,false,33077,13978,4112,15987,false,0,null,null,false,0,false,0,null,null,true,null,"",false]
["01560V","82000S02","LYCEE JAMAL EDDINe ALMAHIAOUI","الثانوية التأهيلية جمال الدين المهياوي","01","06","142","1420111","1","","EL AMAL 2  PROLONGEMENT BD AL FIDA","شارع الفداء الممتد حي الامل 2","20550","Al Fida Derb Sultan","الفداء مرس السلطان","0522288268","-  -  -","youssef.baassou602@gmail.com","400","",false,false,0,true,false,false,false,false,false,true,false,3,"d 208316",682786,"YOUSSEF BAASSOU","يوسف باعسو",false,false,false,false,false,true,true,false,false,false,false,false,false,false,false,false,false,true,true,true,true,true,true,false,true,false,true,true,false,true,"01","1968-10-01","1970-09-16",null,"",0,0,0,true,false,false,false,1,3,2,true,false,false,false,false,false,29339,18089,11250,600,false,0,null,null,false,0,false,0,null,null,false,null,"",false]
["01561W","82000S03","LYCEE SALAHEDDINE AL AYOUBI","الثانوية التأهيلية صلاح الدين الايوبي","01","06","142","1420111","1","","AMAL 2 PROLONGEMENT BD ALFIDA","أمل 2 امتداد شارع الفداء","20550","Al Fida Derb Sultan","الفداء مرس السلطان","0522284898","-  -  -","lycee.salah@yahoo.fr","400","",false,false,0,true,false,false,true,false,false,false,false,1,"B 366014",175865,"ahmed moukhliss","أحمد  مخليص",false,false,false,false,false,true,false,false,false,false,false,false,false,false,false,false,false,true,true,true,true,true,true,false,false,false,true,true,false,false,"01","1982-09-16","1984-09-16",null,"",0,0,0,true,false,false,false,1,1,1,true,false,false,false,false,false,2230,200,701,0,false,0,null,null,false,0,false,0,null,null,false,null,"",false]
["01562X","82000S04","LYCEE TAHA HOUSSEIN","الثانوية التأهيلية طه حسين","01","06","142","1420111","1","","IDRISSIA 2","حي الإدريسية 2","20550","Al Fida Derb Sultan","الفداء مرس السلطان","0522815237","-  -  -","daif.khalid@yahoo.fr","400","",false,false,0,true,false,false,true,false,false,true,false,3,"QUAL",154104,"mohammed waaziz","محمد وعزيز ",false,false,false,false,false,true,false,false,false,false,false,false,false,false,false,false,false,true,true,true,true,true,true,false,false,false,false,true,false,true,"01","1974-09-16","1976-09-16",null,"",0,0,0,true,false,false,false,1,1,1,true,false,false,false,false,false,30898,2100,1376,16561,false,0,null,null,false,0,false,0,null,null,true,null,"",false]
["01563Y","82000S01","LYCEE OUM AL BANINE","الثانوية التأهيلية أم البنين","01","06","142","1420111","1","","HAY EL MASJID RUE iii","حي المسجد زنقة 3","20550","Al Fida Derb Sultan","الفداء مرس السلطان","0522281115","-  -  -","","400","",false,false,0,true,false,false,false,false,false,true,false,2," a147856",214475,"KASSEM DAIFI","قاسم ديفي",false,false,false,false,false,true,false,false,false,false,false,false,false,false,false,false,false,true,true,true,true,true,true,false,false,false,true,true,false,false,"01","1974-09-16","1976-09-16",null,"",0,0,0,true,false,false,false,1,1,1,true,false,false,false,false,false,12486,9627,1109,0,false,0,null,null,false,0,false,0,null,null,false,null,"",false]
["01564Z","82010S01","LYCEE AL KHAOUARIZMI","الثانوية التأهيلية الخوارزمي","01","06","142","1420113","1","","BD LA GIRONDE","شارع لاجيروند","20500","Al Fida Derb Sultan","الفداء مرس السلطان","0522808332","0522-80-83-35","","404","",false,false,0,true,false,false,true,true,true,true,true,2," B562001",143850,"KOTNI MADANI","قطني المدني",false,false,false,false,false,true,false,true,false,true,false,false,false,false,false,false,false,true,true,true,true,true,true,false,true,true,true,true,false,true,"01","1919-10-01","1921-10-01",null,"",0,0,0,true,false,false,false,1,1,1,true,false,false,false,false,false,57357,13479,3300,24596,false,0,null,null,false,0,true,340,"1921-10-02",null,false,null,"",true]
["01565A","82010S02","LYCEE BIR ANZARANE","الثانوية التأهيلية بئرانزران","01","06","142","1420113","1","","BD LA GIRONDE  RUE LA DORDOGNE","زنقة لادوردون شارع لاجيروند","20500","Al Fida Derb Sultan","الفداء مرس السلطان","0522812917"," -","mouloudlak@hotmail.fr","400","",false,false,0,true,false,false,false,false,false,true,false,1,"X43646",177724,"azzouzi mouloud","مولود عزوزي",false,false,false,false,false,true,false,false,false,false,false,false,false,false,false,false,false,true,true,true,true,true,true,false,false,false,false,true,false,true,"01","1979-09-16","1981-09-16",null,"",0,0,0,true,false,false,false,1,1,1,true,false,false,false,false,false,11505,1800,208,814,false,0,null,null,false,0,false,0,null,null,false,null,"",false]
["01566B","82020S01","LYCEE MOHAMED V","الثانوية التأهيلية محمد الخامس","01","06","142","1420113","1","","BD 2 MARS","شارع 2 مارس","20500","Al Fida Derb Sultan","الفداء مرس السلطان","0522286002","0522-28-60-01","H.ELMOSTAFA@HOTmail.com","404","",false,false,0,true,false,false,true,true,false,false,true,3,"I 50644",175540,"HACHIMI EL MOSTAFA","هاشمي المصطفى",false,false,false,false,false,true,false,true,true,false,false,false,false,false,false,false,false,true,true,true,true,true,true,false,false,true,false,true,false,true,"01","1919-10-01","1921-10-01",null,"",0,0,0,true,false,false,false,1,1,1,true,false,false,false,false,false,43750,11000,2700,7873,false,0,null,null,false,0,true,400,"1987-09-16",null,true,null,"",false]
["01567C","82000S16","LYCEE AL BAKILLANI","الثانوية التأهيلية الباقلاني","01","06","142","1420111","1","","SIDI MAAROUF 4  RUE 50","سيدي معروف 4 زنقة 50","20550","Al Fida Derb Sultan","الفداء مرس السلطان","0522288678","0522288678   ","lahfidi@gmail.com","400","",false,false,0,true,false,false,false,false,false,true,false,2,"iB 6542",339611,"lahfidi bouabid","بوعبيد لحفيظي",false,false,false,false,false,true,false,false,false,false,false,false,false,false,false,false,false,true,true,true,true,true,true,false,true,true,true,true,false,true,"01","1993-09-16","1995-09-16",null,"",0,0.1,2,true,false,false,false,1,1,1,true,false,false,false,false,false,8119,1700,518,0,false,0,null,null,false,0,false,0,null,null,false,null,"",true]
["01568D","82020S02","LYCEE FATIMA AZZAHRA","الثانوية التأهيلية فاطمة الزهراء","01","06","142","1420181","1","","83 BD VICTOR HUGO   EL MECHOUAR","زاوية شارع فيكتور هيغو والامام القسطلاني","20500","Casablanca","الدار البيضاء","022303911","","maoujoud.abderrahim@taalim.ma","404","",false,false,0,true,false,false,true,false,false,false,false,2,"B234569",182247,"maoujoud abderrahim","موجود عبد الرحيم",false,false,false,false,false,true,false,true,false,false,false,false,false,false,false,false,false,true,true,true,true,true,true,false,true,true,false,true,false,true,"01","1964-10-01","1966-10-01",null,"",0,0,0,true,false,false,false,1,1,1,true,false,false,false,false,false,10000,1206.01,86.2,0,false,0,null,null,false,0,false,0,null,null,false,null,"",false]
["18235V","82000A01","LA DIRECTION PROVINCIALE AL FIDA MERS SULTAN","المديرية الإقليمية الفداء مرس السلطان","01","06","142","1420113","1","","24 RUE DE ROME","24 زنقة روما","20550","AL FIDA MERS SULTAN","الفداء مرس السلطان","0522283825","0522283825","DELEG.ALFIDA@YAHOO.FR","800","01537v",false,false,1,true,false,false,false,false,false,false,false,0," jc155479",1116293," SAAYDI ABDELALI","عبد العالي اسعيدي",false,false,false,false,false,false,false,false,false,false,false,false,false,false,false,false,false,false,false,false,false,false,false,false,false,false,false,false,false,false,"01","1986-02-01","1988-04-01",null,"",0,0,0,true,false,false,false,1,1,1,true,false,false,false,false,false,0,0,0,0,false,0,null,null,false,0,false,0,null,null,true,null,"",false]
["18588D","82000S17","COLLEGE PRINCE MOULAY RACHID","الثانوية الإعدادية الأمير مولاي رشيد","01","06","142","1420111","1","","EL AMAL 2 PROLONGEMENT BD EL FIDA","شارع الفداء الممتد","20550","al fida derb sultan","الفداء مرس السلطان","0522815102","-  -  -","lcpmyrachid@gmail.com","300","",false,false,0,true,false,false,false,false,false,true,false,2,"B576660",363617,"ABDELILAH  LFATH","عبدالإله الفتح",false,false,false,true,false,false,false,false,false,false,false,false,false,false,false,false,true,true,true,true,true,true,true,false,false,false,true,true,false,false,"01","1997-04-07","1997-04-07",null,"",0,0,0,true,false,false,false,1,1,2,true,false,false,false,false,false,12683,10100,750,0,false,0,null,null,false,0,false,0,null,null,false,null,"",false]
["25958P","","Anx provinciale des Métiers de lEducation et de la Formation"," الفرع الإقليمي للمركز الجهوي لمهن التربية والتكوين","","06","142","1420113","1","","avenue 2 mars ","شارع 2 مارس ","","casablanca","البيضاء","","","crmeffida@yagoo.fr","519","18374w",false,false,0,false,false,false,false,false,false,false,false,0," ",0," "," ",false,false,false,false,false,false,false,false,false,false,true,false,false,false,false,false,false,false,false,false,false,false,false,false,false,false,false,false,false,false,"01","2012-11-09","2012-11-09",null,"",0,0,0,false,false,false,false,null,null,null,false,false,false,false,false,false,null,null,null,null,false,null,null,null,false,null,false,null,null,null,false,null,"",false]

{"sheet":"استقبال","index":1,"n_rows":138,"n_cols":9,"rows_kept":138,"cut":false,"hidden":false,"merged":[[11,7,11,8],[11,4,11,6],[2,4,2,6],[2,7,2,8],[5,4,5,6],[5,7,5,8],[8,4,8,6],[8,7,8,8]]}
[]
[]
[null,null,null,null,"2017-2016",null,null,"السنة الدراسية"]
[]
[]
[null,null,null,null,"مدرسة الأمـــل الابتدائية",null,null,"إسم المؤسسة "]
[]
[]
[null,null,null,null,{"$f":"IF(E6=\"\",\"\",VLOOKUP(E6,$G$99:$H$138,2,0))","v":"01495Z"},null,null,"رمزها"]
[]
[]
[null,null,null,null,{"$f":"IF(E6=\"\",\"\",VLOOKUP(E9,$H$99:$I$138,2,0))","v":"مقاطعة الفداء"},null,null,"المقاطعة"]
[]
[]
[]
[]
[]
[]
[]
[]
[]
[]
[]
[]
[]
[]
[]
[]
[]
[]
[]
[]
[]
[]
[]
[]
[]
[]
[]
[]
[]
[]
[]
[]
[]
[]
[]
[]
[]
[]
[]
[]
[]
[]
[]
[]
[]
[]
[]
[]
[]
[]
[]
[]
[]
[]
[]
[]
[]
[]
[]
[]
[]
[]
[]
[]
[]
[]
[]
[]
[]
[]
[]
[]
[]
[]
[]
[]
[]
[]
[]
[]
[]
[]
[]
[]
[]
[]
[null,null,null,null,null,null,"مدرسة الأمـــل الابتدائية","01495Z","مقاطعة الفداء"]
[null,null,null,null,null,null,"مدرسة عبد الرحمان بن هشام الابتدائية","01496A","مقاطعة الفداء"]
[null,null,null,null,null,null,"مدرسة رحال المسكيني الابتدائية","01497B","مقاطعة الفداء"]
[null,null,null,null,null,null,"مدرسة الفقيه الكانوني الابتدائية","01498C","مقاطعة الفداء"]
[null,null,null,null,null,null,"مدرسة ابن سينا الابتدائية","01499D","مقاطعة الفداء"]
[null,null,null,null,null,null,"مدرسة محمد البارودي الابتدائية","01500E","مقاطعة الفداء"]
[null,null,null,null,null,null,"مدرسة علال بن عبد الله الابتدائية","01501F","مقاطعة الفداء"]
[null,null,null,null,null,null,"مدرسة عين الشفاء الابتدائية","01503H","مقاطعة الفداء"]
[null,null,null,null,null,null,"مدرسة المقديسي الابتدائية","01504J","مقاطعة الفداء"]
[null,null,null,null,null,null,"مدرسة أم هانئ الابتدائية","01505K","مقاطعة الفداء"]
[null,null,null,null,null,null,"مدرسة الإدريسية الابتدائية","01506L","مقاطعة الفداء"]
[null,null,null,null,null,null,"مدرسة يثرب الابتدائية","01507M","مقاطعة الفداء"]
[null,null,null,null,null,null,"مدرسة للا حسناء الابتدائية","01509P","مقاطعة الفداء"]
[null,null,null,null,null,null,"مدرسة القريعة الابتدائية","01510R","مقاطعة الفداء"]
[null,null,null,null,null,null,"مدرسة معاوية بن أبي سفيان الابتدائية","01511S","مقاطعة الفداء"]
[null,null,null,null,null,null,"مدرسة المنصور الذهبي الابتدائية","01512T","مقاطعة الفداء"]
[null,null,null,null,null,null,"مدرسة الحجاج الابتدائية","01513U","مقاطعة الفداء"]
[null,null,null,null,null,null,"مدرسة ابن زيدون الابتدائية","01514V","مقاطعة الفداء"]
[null,null,null,null,null,null,"مدرسة ابن خلدون الابتدائية","01515W","مقاطعة الفداء"]
[null,null,null,null,null,null,"مدرسة الفداء الابتدائية","01516X","مقاطعة الفداء"]
[null,null,null,null,null,null,"مدرسة إبن بطوطة الابتدائية","01517Y","مقاطعة الفداء"]
[null,null,null,null,null,null,"مدرسة القاضي عياض الابتدائية","01518Z","مقاطعة الفداء"]
[null,null,null,null,null,null,"مدرسة بوجدور الابتدائية","01519A","مقاطعة الفداء"]
[null,null,null,null,null,null,"مدرسة عبد الله بن مسعود الابتدائية","01520B","مقاطعة مرس السلطان"]
[null,null,null,null,null,null,"مدرسة ساحة دمشق الابتدائية","01521C","مقاطعة مرس السلطان"]
[null,null,null,null,null,null,"مدرسة عمر مكري الابتدائية","01522D","مقاطعة مرس السلطان"]
[null,null,null,null,null,null,"مدرسة أنقرة الابتدائية","01523E","مقاطعة مرس السلطان"]
[null,null,null,null,null,null,"مدرسة ابن المعتز الابتدائية","01524F","مقاطعة مرس السلطان"]
[null,null,null,null,null,null,"مدرسة الوحدة الابتدائية","01525G","مقاطعة مرس السلطان"]
[null,null,null,null,null,null,"مدرسة سعد بن أبي وقاص الابتدائية","01526H","مقاطعة مرس السلطان"]
[null,null,null,null,null,null,"مدرسة سبـــأ الابتدائية","01527J","مقاطعة مرس السلطان"]
[null,null,null,null,null,null,"مدرسة مولاي إسماعيل الابتدائية","01528K","مقاطعة مرس السلطان"]
[null,null,null,null,null,null,"مدرسة المزرعة بنين الابتدائية","01529L","مقاطعة مرس السلطان"]
[null,null,null,null,null,null,"مدرسة المزرعة بنات الابتدائية","01530M","مقاطعة مرس السلطان"]
[null,null,null,null,null,null,"مدرسة ابن عربي الابتدائية","01532P","مقاطعة مرس السلطان"]
[null,null,null,null,null,null,"مدرسة أم البنين الابتدائية","01535T","مقاطعة مرس السلطان"]
[null,null,null,null,null,null,"مدرسة موسى بن نصير الابتدائية","01536U","مقاطعة مرس السلطان"]
[null,null,null,null,null,null,"مدرسة أبي ذر الغفاري الابتدائية","01538W","مقاطعة مرس السلطان"]
[null,null,null,null,null,null,"مدرسة جميلة القيروانية الابتدائية","01539X","مقاطعة مرس السلطان"]
[null,null,null,null,null,null,"مدرسة النابغة الابتدائية","01540Y","مقاطعة مرس السلطان"]

{"sheet":"مسك1","index":2,"n_rows":23,"n_cols":63,"rows_kept":23,"cut":false,"hidden":false,"merged":[[2,27,2,30],[3,27,3,28],[3,17,3,18],[3,15,3,16],[3,13,3,14],[2,23,2,26],[2,19,2,22],[2,15,2,18],[22,5,22,23],[2,11,2,14],[2,3,2,6],[19,11,19,14],[3,23,3,24],[0,16,0,22],[0,4,0,11],[2,2,4,2],[0,0,0,3],[0,13,0,15],[2,0,4,0],[2,7,2,10],[3,7,3,8],[3,9,3,10],[3,3,3,4],[3,11,3,12],[2,1,4,1],[3,19,3,20],[3,21,3,22],[3,5,3,6],[3,31,3,32],[3,33,3,34],[3,25,3,26],[3,29,3,30],[3,41,3,42],[2,55,2,58],[3,55,3,56],[3,57,3,58],[3,51,3,52],[3,53,3,54],[3,61,3,62],[2,31,2,34],[2,43,2,46],[2,47,2,50],[2,59,2,62],[2,51,2,54],[3,43,3,44],[3,45,3,46],[3,47,3,48],[3,49,3,50],[3,59,3,60],[2,35,2,38],[2,39,2,42],[3,35,3,36],[3,37,3,38],[3,39,3,40]]}
["المؤسســــــــة :",null,null,null,{"$f":"استقبال!E6","v":"مدرسة الأمـــل الابتدائية"},null,null,null,null,null,null,null,null,"رمــــــــــــــزها :",null,null,{"$f":"استقبال!E9","v":"01495Z"}]
[]
[null,"المستوى","رمز المستوى","تلاميذ السنة 1 استفادوا من: ",null,null,null,"أقل من 6",null,null,null,"6سنوات",null,null,null,"7سنوات",null,null,null,"8سنوات",null,null,null,"9سنوات",null,null,null,"10سنوات",null,null,null,"11سنة",null,null,null,"12سنة",null,null,null,"13سنة",null,null,null,"14سنة",null,null,null,"15سنة",null,null,null,"16سنة",null,null,null,"17سنة",null,null,null,"17سنة فأكثر"]
[null,null,null,"الأولي العصري",null,"الكتاب",null,"جدد",null,"مكررون",null,"جدد",null,"مكررون",null,"جدد",null,"مكررون",null,"جدد",null,"مكررون",null,"جدد",null,"مكررون",null,"جدد",null,"مكررون",null,"جدد",null,"مكررون",null,"جدد",null,"مكررون",null,"جدد",null,"مكررون",null,"جدد",null,"مكررون",null,"جدد",null,"مكررون",null,"جدد",null,"مكررون",null,"جدد",null,"مكررون",null,"جدد",null,"مكررون"]
[null,null,null,"ذكور","إنات","ذكور","إنات","ذكور","إنات","ذكور","إنات","ذكور","إنات","ذكور","إنات","ذكور","إنات","ذكور","إنات","ذكور","إنات","ذكور","إنات","ذكور","إنات","ذكور","إنات","ذكور","إنات","ذكور","إنات","ذكور","إنات","ذكور","إنات","ذكور","إنات","ذكور","إنات","ذكور","إنات","ذكور","إنات","ذكور","إنات","ذكور","إنات","ذكور","إنات","ذكور","إنات","ذكور","إنات","ذكور","إنات","ذكور","إنات","ذكور","إنات","ذكور","إنات","ذكور","إنات"]
["code","etab","cdetab","prescmg","prescmf","presckg","presckf","elevng5","elevnf5","elevdg5","elevdf5","elevng6","elevnf6","elevdg6","elevdf6","elevng7","elevnf7","elevdg7","elevdf7","elevng8","elevnf8","elevdg8","elevdf8","elevng9","elevnf9","elevdg9","elevdf9","elevng10","elevnf10","elevdg10","elevdf10","elevng11","elevnf11","elevdg11","elevdf11","elevng12","elevnf12","elevdg12","elevdf12","elevng13","elevnf13","elevdg13","elevdf13","elevng14","elevnf14","elevdg14","elevdf14","elevng15","elevnf15","elevdg15","elevdf15","elevng16","elevnf16","elevdg16","elevdf16","elevng17","elevnf17","elevdg17","elevdf17","elevng18","elevnf18","elevdg18","elevdf18"]
[1,"السنة  الأولى ابتدائي","1061101010"]
[2,"السنة الثانية ابتدائي","1062101010"]
[3,"السنة الثالثة ابتدائي","1063101010"]
[4,"السنة الرابعة ابتدائي","1064101010"]
[5,"السنة الخامسة ابتدائي","1065101010"]
[6,"السنة السادسة ابتدائي","1066101010"]
[7,"مجموع  تلاميذ المؤسسة",null,{"$f":"SUM(D7:D12)","v":0},{"$f":"SUM(E7:E12)","v":0},{"$f":"SUM(F7:F12)","v":0},{"$f":"SUM(G7:G12)","v":0},{"$f":"SUM(H7:H12)","v":0},{"$f":"SUM(I7:I12)","v":0},0,0,0,0,0,0,0,0,0,0,0,0,0,0,0,0,0,0,0,0,0,0,0,0,0,0,0,0,0,0,0,0,0,0,0,0,0,0,0,0,0,0,0,0,0,0,0,0,0,0,0,0,0,0]
[]
[]
[]
[]
[]
[]
[]
[]
[]
[null,null,null,null,null,"Cette feuille n'est pas destinée à être imprimée"]

{"sheet":"مسك2","index":3,"n_rows":17,"n_cols":38,"rows_kept":17,"cut":false,"hidden":false,"merged":[[16,3,16,21],[4,32,4,33],[3,32,3,35],[1,8,4,10],[1,11,4,13],[3,20,4,21],[3,18,4,19],[3,16,4,17],[3,14,4,15],[3,36,3,37],[1,24,2,37],[3,22,4,23],[3,26,4,27],[3,24,4,25],[4,34,4,35],[3,30,4,31],[3,28,4,29],[1,0,5,0],[1,14,2,23],[3,4,5,4],[3,3,5,3],[1,3,2,4],[1,5,4,7],[1,1,5,1],[1,2,5,2]]}
[]
["المستوى","المستوى","رمز المستوى"," الأقسام \n   ( النظام الوظيفي  )",null,"الأمازيغية",null,null,"الإنجليزية",null,null,"الإعلاميات",null,null,"التأخر المدرسي",null,null,null,null,null,null,null,null,null," حركــية التلاميذ   "]
[]
[null,null,null,"الصيغة 1\n(لكل قسم حجرة)","الصيغة 1,5\n(3 أقسام بحجرتين)",null,null,null,null,null,null,null,null,null,"تلاميذ كرروا \nسنة واحدة",null,"تلاميذ كرروا سنين",null,"تلاميذ كرروا ثلاث سنوات",null,"تلاميذ كرروا أربع سنوات",null,"تلاميذ كرروا خمس سنوات وأكثر",null,"الوافدون من التعليم العمومي",null,"الوافدون من التعليم الخصوصي",null,"الوافدون من الخارج",null,"المغادرون",null,"غير الملتحقين",null,null,null,"المدمجون"]
[null,null,null,null,null,null,null,null,null,null,null,null,null,null,null,null,null,null,null,null,null,null,null,null,null,null,null,null,null,null,null,null,"جدد",null,"مكررون"]
[null,null,null,null,null,"الأقسام","ذكور","إناث","الأقسام","ذكور","إناث","الأقسام","ذكور","إناث","ذكور","إناث","ذكور","إناث","ذكور","إناث","ذكور","إناث","ذكور","إناث","ذكور","إناث","ذكور","إناث","ذكور","إناث","ذكور","إناث","ذكور","إناث","ذكور","إناث","ذكور","إناث"]
["code","etab","cdetab","type1","type2","clamazg","amazg","amazf","clamazg","amazg","amazf","clamazg","amazg","amazf","boublg1","boublf1","boublg2","boublf2","boublg3","boublf3","boublg4","boublf4","boublg5","boublf5","arpubg","arpubf","arprivg","arprivf","arexg","arexf","abodg","abodf","noninsng","noninsnf","noninsdg","noninsdf","oublg","oublf"]
[1,"السنة  الأولى ابتدائي","1061101010",null,null,null,{"$f":"IF($F$8=0,0,SUM(مسك1!H7+مسك1!J7+مسك1!L7+مسك1!N7+مسك1!P7+مسك1!R7+مسك1!T7+مسك1!V7+مسك1!X7+مسك1!Z7+مسك1!AB7+مسك1!AD7+مسك1!AF7+مسك1!AH7+مسك1!AJ7+مسك1!AL7+مسك1!AN7+مسك1!AP7+مسك1!AR7+مسك1!AT7+مسك1!AV7+مسك1!AX7+مسك1!AZ7+مسك1!BB7+مسك1!BD7+مسك1!BF7+مسك1!BH7+مسك1!BJ7))","v":0},{"$f":"IF(F8=0,0,SUM(مسك1!I7+مسك1!K7+مسك1!M7+مسك1!O7+مسك1!Q7+مسك1!S7+مسك1!U7+مسك1!W7+مسك1!Y7+مسك1!AA7+مسك1!AC7+مسك1!AE7+مسك1!AG7+مسك1!AI7+مسك1!AK7+مسك1!AM7+مسك1!AO7+مسك1!AQ7+مسك1!AS7+مسك1!AU7+مسك1!AW7+مسك1!AY7+مسك1!BA7+مسك1!BC7+مسك1!BE7+مسك1!BG7+مسك1!BI7+مسك1!BK7))","v":0},null,{"$f":"IF(I8=0,0,SUM(مسك1!H7+مسك1!J7+مسك1!L7+مسك1!N7+مسك1!P7+مسك1!R7+مسك1!T7+مسك1!V7+مسك1!X7+مسك1!Z7+مسك1!AB7+مسك1!AD7+مسك1!AF7+مسك1!AH7+مسك1!AJ7+مسك1!AL7+مسك1!AN7+مسك1!AP7+مسك1!AR7+مسك1!AT7+مسك1!AV7+مسك1!AX7+مسك1!AZ7+مسك1!BB7+مسك1!BD7+مسك1!BF7+مسك1!BH7+مسك1!BJ7))","v":0},{"$f":"IF(I8=0,0,SUM(مسك1!I7+مسك1!K7+مسك1!M7+مسك1!O7+مسك1!Q7+مسك1!S7+مسك1!U7+مسك1!W7+مسك1!Y7+مسك1!AA7+مسك1!AC7+مسك1!AE7+مسك1!AG7+مسك1!AI7+مسك1!AK7+مسك1!AM7+مسك1!AO7+مسك1!AQ7+مسك1!AS7+مسك1!AU7+مسك1!AW7+مسك1!AY7+مسك1!BA7+مسك1!BC7+مسك1!BE7+مسك1!BG7+مسك1!BI7+مسك1!BK7))","v":0},null,{"$f":"IF(L8=0,0,SUM(مسك1!H7+مسك1!J7+مسك1!L7+مسك1!N7+مسك1!P7+مسك1!R7+مسك1!T7+مسك1!V7+مسك1!X7+مسك1!Z7+مسك1!AB7+مسك1!AD7+مسك1!AF7+مسك1!AH7+مسك1!AJ7+مسك1!AL7+مسك1!AN7+مسك1!AP7+مسك1!AR7+مسك1!AT7+مسك1!AV7+مسك1!AX7+مسك1!AZ7+مسك1!BB7+مسك1!BD7+مسك1!BF7+مسك1!BH7+مسك1!BJ7))","v":0},{"$f":"IF(L8=0,0,SUM(مسك1!I7+مسك1!K7+مسك1!M7+مسك1!O7+مسك1!Q7+مسك1!S7+مسك1!U7+مسك1!W7+مسك1!Y7+مسك1!AA7+مسك1!AC7+مسك1!AE7+مسك1!AG7+مسك1!AI7+مسك1!AK7+مسك1!AM7+مسك1!AO7+مسك1!AQ7+مسك1!AS7+مسك1!AU7+مسك1!AW7+مسك1!AY7+مسك1!BA7+مسك1!BC7+مسك1!BE7+مسك1!BG7+مسك1!BI7+مسك1!BK7))","v":0}]
[2,"السنة الثانية ابتدائي","1062101010",null,null,null,{"$f":"IF(F9=0,0,SUM(مسك1!H8+مسك1!J8+مسك1!L8+مسك1!N8+مسك1!P8+مسك1!R8+مسك1!T8+مسك1!V8+مسك1!X8+مسك1!Z8+مسك1!AB8+مسك1!AD8+مسك1!AF8+مسك1!AH8+مسك1!AJ8+مسك1!AL8+مسك1!AN8+مسك1!AP8+مسك1!AR8+مسك1!AT8+مسك1!AV8+مسك1!AX8+مسك1!AZ8+مسك1!BB8+مسك1!BD8+مسك1!BF8+مسك1!BH8+مسك1!BJ8))","v":0},{"$f":"IF(F9=0,0,SUM(مسك1!I8+مسك1!K8+مسك1!M8+مسك1!O8+مسك1!Q8+مسك1!S8+مسك1!U8+مسك1!W8+مسك1!Y8+مسك1!AA8+مسك1!AC8+مسك1!AE8+مسك1!AG8+مسك1!AI8+مسك1!AK8+مسك1!AM8+مسك1!AO8+مسك1!AQ8+مسك1!AS8+مسك1!AU8+مسك1!AW8+مسك1!AY8+مسك1!BA8+مسك1!BC8+مسك1!BE8+مسك1!BG8+مسك1!BI8+مسك1!BK8))","v":0},null,{"$f":"IF(I9=0,0,SUM(مسك1!H8+مسك1!J8+مسك1!L8+مسك1!N8+مسك1!P8+مسك1!R8+مسك1!T8+مسك1!V8+مسك1!X8+مسك1!Z8+مسك1!AB8+مسك1!AD8+مسك1!AF8+مسك1!AH8+مسك1!AJ8+مسك1!AL8+مسك1!AN8+مسك1!AP8+مسك1!AR8+مسك1!AT8+مسك1!AV8+مسك1!AX8+مسك1!AZ8+مسك1!BB8+مسك1!BD8+مسك1!BF8+مسك1!BH8+مسك1!BJ8))","v":0},{"$f":"IF(I9=0,0,SUM(مسك1!I8+مسك1!K8+مسك1!M8+مسك1!O8+مسك1!Q8+مسك1!S8+مسك1!U8+مسك1!W8+مسك1!Y8+مسك1!AA8+مسك1!AC8+مسك1!AE8+مسك1!AG8+مسك1!AI8+مسك1!AK8+مسك1!AM8+مسك1!AO8+مسك1!AQ8+مسك1!AS8+مسك1!AU8+مسك1!AW8+مسك1!AY8+مسك1!BA8+مسك1!BC8+مسك1!BE8+مسك1!BG8+مسك1!BI8+مسك1!BK8))","v":0},null,{"$f":"IF(L9=0,0,SUM(مسك1!H8+مسك1!J8+مسك1!L8+مسك1!N8+مسك1!P8+مسك1!R8+مسك1!T8+مسك1!V8+مسك1!X8+مسك1!Z8+مسك1!AB8+مسك1!AD8+مسك1!AF8+مسك1!AH8+مسك1!AJ8+مسك1!AL8+مسك1!AN8+مسك1!AP8+مسك1!AR8+مسك1!AT8+مسك1!AV8+مسك1!AX8+مسك1!AZ8+مسك1!BB8+مسك1!BD8+مسك1!BF8+مسك1!BH8+مسك1!BJ8))","v":0},{"$f":"IF(L9=0,0,SUM(مسك1!I8+مسك1!K8+مسك1!M8+مسك1!O8+مسك1!Q8+مسك1!S8+مسك1!U8+مسك1!W8+مسك1!Y8+مسك1!AA8+مسك1!AC8+مسك1!AE8+مسك1!AG8+مسك1!AI8+مسك1!AK8+مسك1!AM8+مسك1!AO8+مسك1!AQ8+مسك1!AS8+مسك1!AU8+مسك1!AW8+مسك1!AY8+مسك1!BA8+مسك1!BC8+مسك1!BE8+مسك1!BG8+مسك1!BI8+مسك1!BK8))","v":0}]
[3,"السنة الثالثة ابتدائي","1063101010",null,null,null,{"$f":"IF(F10=0,0,SUM(مسك1!H9+مسك1!J9+مسك1!L9+مسك1!N9+مسك1!P9+مسك1!R9+مسك1!T9+مسك1!V9+مسك1!X9+مسك1!Z9+مسك1!AB9+مسك1!AD9+مسك1!AF9+مسك1!AH9+مسك1!AJ9+مسك1!AL9+مسك1!AN9+مسك1!AP9+مسك1!AR9+مسك1!AT9+مسك1!AV9+مسك1!AX9+مسك1!AZ9+مسك1!BB9+مسك1!BD9+مسك1!BF9+مسك1!BH9+مسك1!BJ9))","v":0},{"$f":"IF(F10=0,0,SUM(مسك1!I9+مسك1!K9+مسك1!M9+مسك1!O9+مسك1!Q9+مسك1!S9+مسك1!U9+مسك1!W9+مسك1!Y9+مسك1!AA9+مسك1!AC9+مسك1!AE9+مسك1!AG9+مسك1!AI9+مسك1!AK9+مسك1!AM9+مسك1!AO9+مسك1!AQ9+مسك1!AS9+مسك1!AU9+مسك1!AW9+مسك1!AY9+مسك1!BA9+مسك1!BC9+مسك1!BE9+مسك1!BG9+مسك1!BI9+مسك1!BK9))","v":0},null,{"$f":"IF(I10=0,0,SUM(مسك1!H9+مسك1!J9+مسك1!L9+مسك1!N9+مسك1!P9+مسك1!R9+مسك1!T9+مسك1!V9+مسك1!X9+مسك1!Z9+مسك1!AB9+مسك1!AD9+مسك1!AF9+مسك1!AH9+مسك1!AJ9+مسك1!AL9+مسك1!AN9+مسك1!AP9+مسك1!AR9+مسك1!AT9+مسك1!AV9+مسك1!AX9+مسك1!AZ9+مسك1!BB9+مسك1!BD9+مسك1!BF9+مسك1!BH9+مسك1!BJ9))","v":0},{"$f":"IF(I10=0,0,SUM(مسك1!I9+مسك1!K9+مسك1!M9+مسك1!O9+مسك1!Q9+مسك1!S9+مسك1!U9+مسك1!W9+مسك1!Y9+مسك1!AA9+مسك1!AC9+مسك1!AE9+مسك1!AG9+مسك1!AI9+مسك1!AK9+مسك1!AM9+مسك1!AO9+مسك1!AQ9+مسك1!AS9+مسك1!AU9+مسك1!AW9+مسك1!AY9+مسك1!BA9+مسك1!BC9+مسك1!BE9+مسك1!BG9+مسك1!BI9+مسك1!BK9))","v":0},null,{"$f":"IF(L10=0,0,SUM(مسك1!H9+مسك1!J9+مسك1!L9+مسك1!N9+مسك1!P9+مسك1!R9+مسك1!T9+مسك1!V9+مسك1!X9+مسك1!Z9+مسك1!AB9+مسك1!AD9+مسك1!AF9+مسك1!AH9+مسك1!AJ9+مسك1!AL9+مسك1!AN9+مسك1!AP9+مسك1!AR9+مسك1!AT9+مسك1!AV9+مسك1!AX9+مسك1!AZ9+مسك1!BB9+مسك1!BD9+مسك1!BF9+مسك1!BH9+مسك1!BJ9))","v":0},{"$f":"IF(L10=0,0,SUM(مسك1!I9+مسك1!K9+مسك1!M9+مسك1!O9+مسك1!Q9+مسك1!S9+مسك1!U9+مسك1!W9+مسك1!Y9+مسك1!AA9+مسك1!AC9+مسك1!AE9+مسك1!AG9+مسك1!AI9+مسك1!AK9+مسك1!AM9+مسك1!AO9+مسك1!AQ9+مسك1!AS9+مسك1!AU9+مسك1!AW9+مسك1!AY9+مسك1!BA9+مسك1!BC9+مسك1!BE9+مسك1!BG9+مسك1!BI9+مسك1!BK9))","v":0}]
[4,"السنة الرابعة ابتدائي","1064101010",null,null,null,{"$f":"IF(F11=0,0,SUM(مسك1!H10+مسك1!J10+مسك1!L10+مسك1!N10+مسك1!P10+مسك1!R10+مسك1!T10+مسك1!V10+مسك1!X10+مسك1!Z10+مسك1!AB10+مسك1!AD10+مسك1!AF10+مسك1!AH10+مسك1!AJ10+مسك1!AL10+مسك1!AN10+مسك1!AP10+مسك1!AR10+مسك1!AT10+مسك1!AV10+مسك1!AX10+مسك1!AZ10+مسك1!BB10+مسك1!BD10+مسك1!BF10+مسك1!BH10+مسك1!BJ10))","v":0},{"$f":"IF(F11=0,0,SUM(مسك1!I10+مسك1!K10+مسك1!M10+مسك1!O10+مسك1!Q10+مسك1!S10+مسك1!U10+مسك1!W10+مسك1!Y10+مسك1!AA10+مسك1!AC10+مسك1!AE10+مسك1!AG10+مسك1!AI10+مسك1!AK10+مسك1!AM10+مسك1!AO10+مسك1!AQ10+مسك1!AS10+مسك1!AU10+مسك1!AW10+مسك1!AY10+مسك1!BA10+مسك1!BC10+مسك1!BE10+مسك1!BG10+مسك1!BI10+مسك1!BK10))","v":0},null,{"$f":"IF(I11=0,0,SUM(مسك1!H10+مسك1!J10+مسك1!L10+مسك1!N10+مسك1!P10+مسك1!R10+مسك1!T10+مسك1!V10+مسك1!X10+مسك1!Z10+مسك1!AB10+مسك1!AD10+مسك1!AF10+مسك1!AH10+مسك1!AJ10+مسك1!AL10+مسك1!AN10+مسك1!AP10+مسك1!AR10+مسك1!AT10+مسك1!AV10+مسك1!AX10+مسك1!AZ10+مسك1!BB10+مسك1!BD10+مسك1!BF10+مسك1!BH10+مسك1!BJ10))","v":0},{"$f":"IF(I11=0,0,SUM(مسك1!I10+مسك1!K10+مسك1!M10+مسك1!O10+مسك1!Q10+مسك1!S10+مسك1!U10+مسك1!W10+مسك1!Y10+مسك1!AA10+مسك1!AC10+مسك1!AE10+مسك1!AG10+مسك1!AI10+مسك1!AK10+مسك1!AM10+مسك1!AO10+مسك1!AQ10+مسك1!AS10+مسك1!AU10+مسك1!AW10+مسك1!AY10+مسك1!BA10+مسك1!BC10+مسك1!BE10+مسك1!BG10+مسك1!BI10+مسك1!BK10))","v":0},null,{"$f":"IF(L11=0,0,SUM(مسك1!H10+مسك1!J10+مسك1!L10+مسك1!N10+مسك1!P10+مسك1!R10+مسك1!T10+مسك1!V10+مسك1!X10+مسك1!Z10+مسك1!AB10+مسك1!AD10+مسك1!AF10+مسك1!AH10+مسك1!AJ10+مسك1!AL10+مسك1!AN10+مسك1!AP10+مسك1!AR10+مسك1!AT10+مسك1!AV10+مسك1!AX10+مسك1!AZ10+مسك1!BB10+مسك1!BD10+مسك1!BF10+مسك1!BH10+مسك1!BJ10))","v":0},{"$f":"IF(L11=0,0,SUM(مسك1!I10+مسك1!K10+مسك1!M10+مسك1!O10+مسك1!Q10+مسك1!S10+مسك1!U10+مسك1!W10+مسك1!Y10+مسك1!AA10+مسك1!AC10+مسك1!AE10+مسك1!AG10+مسك1!AI10+مسك1!AK10+مسك1!AM10+مسك1!AO10+مسك1!AQ10+مسك1!AS10+مسك1!AU10+مسك1!AW10+مسك1!AY10+مسك1!BA10+مسك1!BC10+مسك1!BE10+مسك1!BG10+مسك1!BI10+مسك1!BK10))","v":0}]
[5,"السنة الخامسة ابتدائي","1065101010",null,null,null,{"$f":"IF(F12=0,0,SUM(مسك1!H11+مسك1!J11+مسك1!L11+مسك1!N11+مسك1!P11+مسك1!R11+مسك1!T11+مسك1!V11+مسك1!X11+مسك1!Z11+مسك1!AB11+مسك1!AD11+مسك1!AF11+مسك1!AH11+مسك1!AJ11+مسك1!AL11+مسك1!AN11+مسك1!AP11+مسك1!AR11+مسك1!AT11+مسك1!AV11+مسك1!AX11+مسك1!AZ11+مسك1!BB11+مسك1!BD11+مسك1!BF11+مسك1!BH11+مسك1!BJ11))","v":0},{"$f":"IF(F12=0,0,SUM(مسك1!I11+مسك1!K11+مسك1!M11+مسك1!O11+مسك1!Q11+مسك1!S11+مسك1!U11+مسك1!W11+مسك1!Y11+مسك1!AA11+مسك1!AC11+مسك1!AE11+مسك1!AG11+مسك1!AI11+مسك1!AK11+مسك1!AM11+مسك1!AO11+مسك1!AQ11+مسك1!AS11+مسك1!AU11+مسك1!AW11+مسك1!AY11+مسك1!BA11+مسك1!BC11+مسك1!BE11+مسك1!BG11+مسك1!BI11+مسك1!BK11))","v":0},null,{"$f":"IF(I12=0,0,SUM(مسك1!H11+مسك1!J11+مسك1!L11+مسك1!N11+مسك1!P11+مسك1!R11+مسك1!T11+مسك1!V11+مسك1!X11+مسك1!Z11+مسك1!AB11+مسك1!AD11+مسك1!AF11+مسك1!AH11+مسك1!AJ11+مسك1!AL11+مسك1!AN11+مسك1!AP11+مسك1!AR11+مسك1!AT11+مسك1!AV11+مسك1!AX11+مسك1!AZ11+مسك1!BB11+مسك1!BD11+مسك1!BF11+مسك1!BH11+مسك1!BJ11))","v":0},{"$f":"IF(I12=0,0,SUM(مسك1!I11+مسك1!K11+مسك1!M11+مسك1!O11+مسك1!Q11+مسك1!S11+مسك1!U11+مسك1!W11+مسك1!Y11+مسك1!AA11+مسك1!AC11+مسك1!AE11+مسك1!AG11+مسك1!AI11+مسك1!AK11+مسك1!AM11+مسك1!AO11+مسك1!AQ11+مسك1!AS11+مسك1!AU11+مسك1!AW11+مسك1!AY11+مسك1!BA11+مسك1!BC11+مسك1!BE11+مسك1!BG11+مسك1!BI11+مسك1!BK11))","v":0},null,{"$f":"IF(L12=0,0,SUM(مسك1!H11+مسك1!J11+مسك1!L11+مسك1!N11+مسك1!P11+مسك1!R11+مسك1!T11+مسك1!V11+مسك1!X11+مسك1!Z11+مسك1!AB11+مسك1!AD11+مسك1!AF11+مسك1!AH11+مسك1!AJ11+مسك1!AL11+مسك1!AN11+مسك1!AP11+مسك1!AR11+مسك1!AT11+مسك1!AV11+مسك1!AX11+مسك1!AZ11+مسك1!BB11+مسك1!BD11+مسك1!BF11+مسك1!BH11+مسك1!BJ11))","v":0},{"$f":"IF(L12=0,0,SUM(مسك1!I11+مسك1!K11+مسك1!M11+مسك1!O11+مسك1!Q11+مسك1!S11+مسك1!U11+مسك1!W11+مسك1!Y11+مسك1!AA11+مسك1!AC11+مسك1!AE11+مسك1!AG11+مسك1!AI11+مسك1!AK11+مسك1!AM11+مسك1!AO11+مسك1!AQ11+مسك1!AS11+مسك1!AU11+مسك1!AW11+مسك1!AY11+مسك1!BA11+مسك1!BC11+مسك1!BE11+مسك1!BG11+مسك1!BI11+مسك1!BK11))","v":0}]
[6,"السنة السادسة ابتدائي","1066101010",null,null,null,{"$f":"IF(F13=0,0,SUM(مسك1!H12+مسك1!J12+مسك1!L12+مسك1!N12+مسك1!P12+مسك1!R12+مسك1!T12+مسك1!V12+مسك1!X12+مسك1!Z12+مسك1!AB12+مسك1!AD12+مسك1!AF12+مسك1!AH12+مسك1!AJ12+مسك1!AL12+مسك1!AN12+مسك1!AP12+مسك1!AR12+مسك1!AT12+مسك1!AV12+مسك1!AX12+مسك1!AZ12+مسك1!BB12+مسك1!BD12+مسك1!BF12+مسك1!BH12+مسك1!BJ12))","v":0},{"$f":"IF(F13=0,0,SUM(مسك1!I12+مسك1!K12+مسك1!M12+مسك1!O12+مسك1!Q12+مسك1!S12+مسك1!U12+مسك1!W12+مسك1!Y12+مسك1!AA12+مسك1!AC12+مسك1!AE12+مسك1!AG12+مسك1!AI12+مسك1!AK12+مسك1!AM12+مسك1!AO12+مسك1!AQ12+مسك1!AS12+مسك1!AU12+مسك1!AW12+مسك1!AY12+مسك1!BA12+مسك1!BC12+مسك1!BE12+مسك1!BG12+مسك1!BI12+مسك1!BK12))","v":0},null,{"$f":"IF(I13=0,0,SUM(مسك1!H12+مسك1!J12+مسك1!L12+مسك1!N12+مسك1!P12+مسك1!R12+مسك1!T12+مسك1!V12+مسك1!X12+مسك1!Z12+مسك1!AB12+مسك1!AD12+مسك1!AF12+مسك1!AH12+مسك1!AJ12+مسك1!AL12+مسك1!AN12+مسك1!AP12+مسك1!AR12+مسك1!AT12+مسك1!AV12+مسك1!AX12+مسك1!AZ12+مسك1!BB12+مسك1!BD12+مسك1!BF12+مسك1!BH12+مسك1!BJ12))","v":0},{"$f":"IF(I13=0,0,SUM(مسك1!I12+مسك1!K12+مسك1!M12+مسك1!O12+مسك1!Q12+مسك1!S12+مسك1!U12+مسك1!W12+مسك1!Y12+مسك1!AA12+مسك1!AC12+مسك1!AE12+مسك1!AG12+مسك1!AI12+مسك1!AK12+مسك1!AM12+مسك1!AO12+مسك1!AQ12+مسك1!AS12+مسك1!AU12+مسك1!AW12+مسك1!AY12+مسك1!BA12+مسك1!BC12+مسك1!BE12+مسك1!BG12+مسك1!BI12+مسك1!BK12))","v":0},null,{"$f":"IF(L13=0,0,SUM(مسك1!H12+مسك1!J12+مسك1!L12+مسك1!N12+مسك1!P12+مسك1!R12+مسك1!T12+مسك1!V12+مسك1!X12+مسك1!Z12+مسك1!AB12+مسك1!AD12+مسك1!AF12+مسك1!AH12+مسك1!AJ12+مسك1!AL12+مسك1!AN12+مسك1!AP12+مسك1!AR12+مسك1!AT12+مسك1!AV12+مسك1!AX12+مسك1!AZ12+مسك1!BB12+مسك1!BD12+مسك1!BF12+مسك1!BH12+مسك1!BJ12))","v":0},{"$f":"IF(L13=0,0,SUM(مسك1!I12+مسك1!K12+مسك1!M12+مسك1!O12+مسك1!Q12+مسك1!S12+مسك1!U12+مسك1!W12+مسك1!Y12+مسك1!AA12+مسك1!AC12+مسك1!AE12+مسك1!AG12+مسك1!AI12+مسك1!AK12+مسك1!AM12+مسك1!AO12+مسك1!AQ12+مسك1!AS12+مسك1!AU12+مسك1!AW12+مسك1!AY12+مسك1!BA12+مسك1!BC12+مسك1!BE12+مسك1!BG12+مسك1!BI12+مسك1!BK12))","v":0}]
[7,"المجموع  ",null,{"$f":"SUM(D8:D13)","v":0},{"$f":"SUM(E8:E13)","v":0},{"$f":"SUM(F8:F13)","v":0},{"$f":"SUM(G8:G13)","v":0},0,{"$f":"SUM(I8:I13)","v":0},0,0,0,0,0,0,0,0,0,0,0,0,0,0,0,0,0,0,0,0,0,0,{"$f":"SUM(AF8:AF13)","v":0},{"$f":"SUM(AG8:AG13)","v":0},{"$f":"SUM(AH8:AH13)","v":0},0,0,0,0]
[]
[]
[null,null,null,"Cette feuille n'est pas destinée à être imprimée"]

{"sheet":"غلاف","index":4,"n_rows":114,"n_cols":34,"rows_kept":114,"cut":false,"hidden":false,"merged":[[47,24,47,38],[47,39,47,40],[48,24,48,38],[48,39,48,40],[42,39,42,40],[46,24,46,38],[46,39,46,40],[45,24,45,38],[45,39,45,40],[38,24,38,40],[43,24,43,38],[43,39,43,40],[44,24,44,38],[44,39,44,40],[39,24,39,38],[39,39,39,40],[40,24,40,38],[40,39,40,40],[41,24,41,38],[41,39,41,40],[34,5,36,9],[34,27,34,30],[13,2,13,40],[15,3,15,40],[0,12,0,25],[1,12,1,25],[1,29,1,37],[7,8,7,16],[7,24,7,32],[10,0,10,20],[10,23,10,42],[7,17,7,23],[24,5,24,18],[24,24,24,37],[26,5,26,18],[18,24,18,37],[28,5,28,37],[26,24,26,37],[22,19,22,21],[24,19,24,21],[26,19,26,21],[22,5,22,18],[22,24,22,37],[18,5,18,18],[20,5,20,18],[20,24,20,37],[20,19,20,21],[18,19,18,21],[40,5,40,11],[42,2,42,15],[40,2,40,4],[40,12,40,14],[29,8,29,27],[41,2,41,15],[34,11,34,23],[42,24,42,38],[34,31,34,37],[29,31,29,37],[32,9,32,15],[32,31,32,37],[29,5,30,7],[29,28,30,30],[32,5,32,8],[32,27,32,30]]}
[]
[]
[]
[]
[]
[]
[]
[null,null,null,null,null,null,null,null,"Année scolaire :",null,null,null,null,null,null,null,null,{"$f":"+استقبال!E3","v":"2017-2016"},null,null,null,null,null,null,"السنة الدراسية :"]
[]
[]
[]
[]
[]
[null,null,"IDENTIFICATION ET LOCALISATION DE L'ÉTABLISSEMENT"]
[]
[null,null,null,"تعــريـف وموقع المـؤسـســــــــة"]
[]
[]
[null,null,null,null,null,"Nom de l'établissement     اسم المؤسسة",null,null,null,null,null,null,null,null,null,null,null,null,null,{"$f":"استقبال!E9","v":"01495Z"},null,null,null,null,{"$f":"استقبال!E6","v":"مدرسة الأمـــل الابتدائية"}]
[]
[null,null,null,null,null,"Nature de l'établissement  طبيعة المؤسسة",null,null,null,null,null,null,null,null,null,null,null,null,null,200,null,null,null,null,"مؤسسة ابتدائية "]
[]
[null,null,null,null,null,"Région                                                             الجهة",null,null,null,null,null,null,null,null,null,null,null,null,null,"06",null,null,null,null,"الدار البيضاء سطات "]
[]
[null,null,null,null,null,"Province                                                          الإقليم ",null,null,null,null,null,null,null,null,null,null,null,null,null,142,null,null,null,null,"عمالة مقاطعات الفداء مرس السلطان"]
[]
[null,null,null,null,null,"Commune                                   الجماعة /المقاطعة",null,null,null,null,null,null,null,null,null,null,null,null,null,{"$f":"IF(Y27=\"\",\"\",VLOOKUP(Y27,$AG$113:$AH$114,2,0))","v":1420111},null,null,null,null,{"$f":"استقبال!E12","v":"مقاطعة الفداء"}]
[]
[null,null,null,null,null,"Coordonnées de l'établissement    عنوان المؤسسة"]
[null,null,null,null,null,"Adresse\nالعنوان",null,null,{"$f":"VLOOKUP(T19,Feuil1!$A$3:$R$78,12,0)","v":"درب السادني،عرصة ابن امسيك"},null,null,null,null,null,null,null,null,null,null,null,null,null,null,null,null,null,null,null,"  Ville\nالمدينة",null,null,"الدار البيضاء"]
[]
[]
[null,null,null,null,null,"Code postal\nالرمز البريدي",null,null,null,{"$f":"VLOOKUP(T19,Feuil1!$A$3:$R$78,13,0)","v":"20550"},null,null,null,null,null,null,null,null,null,null,null,null,null,null,null,null,null,"Téléphone :\nالهاتف",null,null,null,{"$f":"VLOOKUP(T19,Feuil1!$A$3:$R$78,16,0)","v":"0673274614"}]
[]
[null,null,null,null,null,"E.Mail\nالعنوان الإلكتروني",null,null,null,null,null,{"$f":"VLOOKUP(T19,Feuil1!$A$3:$R$78,18,0)","v":"soussihoume@gmail.com"},null,null,null,null,null,null,null,null,null,null,null,null,null,null,null,"Fax:\nالفاكس",null,null,null,{"$f":"VLOOKUP(T19,Feuil1!$A$3:$R$78,17,0)","v":"-  -  -"}]
[]
[]
[]
[null,null,null,null,null,null,null,null,null,null,null,null,null,null,null,null,null,null,null,null,null,null,null,null,"وثائق الملف :"]
[null,null,null,null,null,null,null,null,null,null,null,null,null,null,null,null,null,null,null,null,null,null,null,null,"التمدرس (الحركية - التأخر المدرسي - الأمازيغية)"]
[null,null,"Date :",null,null,{"$f":"TODAY()","v":"2016-11-29"},null,null,null,null,null,null,"التاريخ :",null,null,null,null,null,null,null,null,null,null,null,"مدرسون - حجرات "]
[null,null,"Signature du responsable de l'établissement",null,null,null,null,null,null,null,null,null,null,null,null,null,null,null,null,null,null,null,null,null,"فضاءات الاستقبال "]
[null,null,"توقيع السيد (ة) المسؤول (ة) عن المؤسسة",null,null,null,null,null,null,null,null,null,null,null,null,null,null,null,null,null,null,null,null,null,"الدعم المدرسي "]
[null,null,null,null,null,null,null,null,null,null,null,null,null,null,null,null,null,null,null,null,null,null,null,null,"التعليم الأولي "]
[null,null,null,null,null,null,null,null,null,null,null,null,null,null,null,null,null,null,null,null,null,null,null,null,"ذوي الاحتياجات الخاصة "]
[null,null,null,null,null,null,null,null,null,null,null,null,null,null,null,null,null,null,null,null,null,null,null,null,"بطاقة المؤسسة"]
[null,null,null,null,null,null,null,null,null,null,null,null,null,null,null,null,null,null,null,null,null,null,null,null,"لائحة الأجانب"]
[null,null,null,null,null,null,null,null,null,null,null,null,null,null,null,null,null,null,null,null,null,null,null,null,"جرد الأثاث التعليمي"]
[null,null,null,null,null,null,null,null,null,null,null,null,null,null,null,null,null,null,null,null,null,null,null,null,"الموارد البشرية "]
[]
[]
[]
[]
[]
[]
[]
[]
[]
[]
[]
[]
[]
[]
[]
[]
[]
[]
[]
[]
[]
[]
[]
[]
[]
[]
[]
[]
[]
[]
[]
[]
[]
[]
[]
[]
[]
[]
[]
[]
[]
[]
[]
[]
[]
[]
[]
[]
[]
[]
[]
[]
[]
[]
[]
[]
[]
[]
[]
[]
[]
[]
[]
[null,null,null,null,null,null,null,null,null,null,null,null,null,null,null,null,null,null,null,null,null,null,null,null,null,null,null,null,null,null,null,null,"مقاطعة الفداء",1420111]
[null,null,null,null,null,null,null,null,null,null,null,null,null,null,null,null,null,null,null,null,null,null,null,null,null,null,null,null,null,null,null,null,"مقاطعة مرس السلطان",1420113]

{"sheet":"التمدرس","index":5,"n_rows":74,"n_cols":27,"rows_kept":74,"cut":false,"hidden":false,"merged":[[72,4,73,5],[70,3,71,3],[63,7,63,9],[67,7,67,9],[57,7,57,12],[68,10,69,10],[68,11,69,11],[68,12,69,12],[66,10,67,10],[66,11,67,11],[72,7,72,9],[72,10,73,10],[72,11,73,11],[72,12,73,12],[73,7,73,9],[64,12,65,12],[65,7,65,9],[64,11,65,11],[64,10,65,10],[69,7,69,9],[66,12,67,12],[62,12,63,12],[66,3,67,3],[66,4,67,4],[48,1,48,5],[48,7,48,12],[59,1,59,5],[62,4,63,4],[62,5,63,5],[59,7,59,12],[53,7,53,9],[62,1,62,2],[62,10,63,10],[62,11,63,11],[37,11,37,12],[44,11,44,12],[45,11,45,12],[38,11,38,12],[39,11,39,12],[40,11,40,12],[41,11,41,12],[42,11,42,12],[52,7,52,9],[20,7,20,9],[51,7,51,9],[16,8,16,9],[24,2,24,3],[20,1,20,3],[18,8,18,9],[34,11,34,12],[35,11,35,12],[27,1,27,12],[29,1,30,1],[29,11,30,12],[29,8,29,10],[31,11,31,12],[32,11,32,12],[20,10,20,12],[29,2,29,4],[20,4,20,6],[16,2,16,3],[22,2,22,3],[33,11,33,12],[43,11,43,12],[16,4,16,5],[23,2,23,3],[36,11,36,12],[70,1,70,2],[66,1,66,2],[67,1,67,2],[71,1,71,2],[63,1,63,2],[55,7,55,9],[70,4,71,4],[70,5,71,5],[71,7,71,8],[70,7,70,8],[56,7,56,9],[62,3,63,3],[68,3,69,3],[68,4,69,4],[68,5,69,5],[69,1,69,2],[64,3,65,3],[64,4,65,4],[68,1,68,2],[65,1,65,2],[64,1,64,2],[66,5,67,5],[64,5,65,5],[0,7,0,8],[0,10,0,11],[0,0,0,6],[29,5,29,7],[1,0,1,13],[13,4,13,5],[13,6,13,7],[13,8,13,9],[4,1,4,2],[14,8,14,9],[11,1,11,12],[15,2,15,3],[14,4,14,5],[14,6,14,7],[15,4,15,5],[14,2,14,3],[18,1,18,3],[16,6,16,7],[15,6,15,7],[15,8,15,9],[8,4,8,6],[8,7,8,12],[4,3,4,6],[4,7,4,12]]}
["Questionnaire  Q05   استمــــــارة",null,null,null,null,null,null,"Public عمومي",null,null,"Privé خصوصي",null,null,null,null,null,null,null,null,null,null,null,null,null,null,null,1]
["Scolarité des élèves de l'enseignement primaire      تمدرس تلاميذ التعليم الابتدائي",null,null,null,null,null,null,null,null,null,null,null,null,null,null,null,null,null,null,null,null,null,null,null,null,null,2]
[null,null,null,null,null,null,null,null,null,null,null,null,null,null,null,null,null,null,null,null,null,null,null,null,null,null,3]
["I/."," IDENTIFICATION DE L'ÉTABLISSEMENT                                              تعـــريف المؤسســــة",null,null,null,null,null,null,null,null,null,null,null,null,null,null,null,null,null,null,null,null,null,null,null,null,4]
[null,"1.1  Etablissement    المؤسســـــة",null,{"$f":"مسك1!Q1","v":"01495Z"},null,null,null,{"$f":"مسك1!E1","v":"مدرسة الأمـــل الابتدائية"},null,null,null,null,null,null,null,null,null,null,null,null,null,null,null,null,null,null,5]
[null,null,null,null,null,null,null,null,null,null,null,null,null,null,null,null,null,null,null,null,null,null,null,null,null,null,6]
["II/.","Statistiques                                                                                             إحصائيات",null,null,null,null,null,null,null,null,null,null,null,null,null,{"$f":"مسك1!A7","v":1},null,null,null,null,null,null,null,null,null,null,7]
[null,null,null,null,null,null,null,null,null,null,null,null,null,null,null,{"$f":"مسك1!A8","v":2}]
[null,"2.1  Formation   التكوين",1,null,{"$f":"INDEX(cdetab,MATCH(lookupvalue,code,0))","v":"1061101010"},null,null,{"$f":"INDEX(etab,MATCH(lookupvalue,code,0))","v":"السنة  الأولى ابتدائي"},null,null,{"$f":"INDEX(cdetab,MATCH(lookupvalue,code,0))","v":"1061101010"},null,null,null,null,{"$f":"مسك1!A9","v":3}]
[null,null,null,null,null,null,null,null,null,null,null,null,null,null,null,{"$f":"مسك1!A10","v":4}]
[null,null,null,null,null,null,null,null,null,null,null,null,null,null,null,{"$f":"مسك1!A11","v":5}]
[null,"2.2  Nouveaux inscrits en 1° AP ayant fréquenté une classe du préscolaire                                                                           \n                                                                                                                                  المسجلون الجدد بالأولى الذين سبق لهم أن درسوا بالتعليم الأولي",null,null,null,null,null,null,null,null,null,null,null,null,null,{"$f":"مسك1!A12","v":6}]
[null,null,null,null,null,null,null,null,null,null,null,null,null,null,null,{"$f":"مسك1!A13","v":7}]
[null,null,null,null,"Garçons   ذكور",null,"Filles    إناث",null,"Total    مجموع"]
[null,"Préscolaire Moderne","الأولي العصري",null,{"$f":"INDEX(prescmg,MATCH(lookupvalue,code,0))","v":0},{"$f":"INDEX(elevnf5,MATCH(lookupvalue,code,0))","v":0},{"$f":"INDEX(prescmf,MATCH(lookupvalue,code,0))","v":0},{"$f":"INDEX(elevnf5,MATCH(lookupvalue,code,0))","v":0},{"$f":"E15+G15","v":0}]
[null,"Préscolaire coranique","الكتاب",null,{"$f":"INDEX(presckg,MATCH(lookupvalue,code,0))","v":0},{"$f":"INDEX(elevnf5,MATCH(lookupvalue,code,0))","v":0},{"$f":"INDEX(presckf,MATCH(lookupvalue,code,0))","v":0},{"$f":"INDEX(elevnf5,MATCH(lookupvalue,code,0))","v":0},{"$f":"E16+G16","v":0}]
[null,"Total","مجموع",null,{"$f":"E15+E16","v":0},null,{"$f":"G15+G16","v":0},null,{"$f":"E17+G17","v":0}]
[]
[null,"2.3  Elèves et Classes           التلاميذ والأقسام",null,null,null,null,null,null,{"$f":"IF(E9=\"1061101010\",IF(I17<=E46,\"OK\",\"Erreur\"),\"\")","v":"OK"}]
[]
[null,null,null,null,"CCU     أقسام ذات مستوى واحد",null,null,"CCM    أقسام متعددة المستويات   ",null,null,"Ensemble   مجموع"]
[null,null,null,null,"التنظيم الوظيفي 1\nOF1","التنظيم الوظيفي 2\nOF2","مجموع\nTotal","التنظيم الوظيفي 1\nOF1","التنظيم الوظيفي 2\nOF2","مجموع\nTotal","التنظيم الوظيفي 1\nOF1","التنظيم الوظيفي 2\nOF2","مجموع\nTotal"]
[null,"Nombre de classes","عدد الأقسام",null,{"$f":"INDEX(type1,MATCH(lookupvalue,code,0))","v":0},{"$f":"INDEX(type2,MATCH(lookupvalue,code,0))","v":0},{"$f":"E23+F23","v":0},null,null,{"$f":"H23+I23","v":0},{"$f":"E23+H23","v":0},0,0]
[null,"Total élèves","عدد التلاميذ",null,{"$f":"IF(E23=0,0,K46)","v":0},{"$f":"IF(F23=0,0,K46)","v":0},{"$f":"E24+F24","v":0},null,null,{"$f":"H24+I24","v":0},0,0,0]
[null,"dont filles","الإناث منهم",null,{"$f":"IF(E23=0,0,J46)","v":0},{"$f":"IF(F23=0,0,J46)","v":0},{"$f":"E25+F25","v":0},null,null,{"$f":"H25+I25","v":0},0,0,0]
[]
[]
[null,"2.4  Répartition des élèves par état de scolarité, âge et sexe                                       توزيع التلاميذ حسب حالة التمدرس والجنس والســن  "]
[]
[null,"Age","Nouveaux    الجدد",null,null,"Redoublants    المكررون",null,null,"Ensemble    المجموع",null,null,"السن"]
[null,null,"Garçons\nذكــــور","Filles\nإناث","Total\nمجموع","Garçons\nذكــــور","Filles\nإناث","Total\nمجموع","Garçons\nذكــــور","Filles\nإناث","Total\nمجموع"]
[null,"moins de 6 ans",{"$f":"INDEX(elevng5,MATCH(lookupvalue,code,0))","v":0},{"$f":"INDEX(elevnf5,MATCH(lookupvalue,code,0))","v":0},{"$f":"SUM(C32:D32)","v":0},{"$f":"INDEX(elevdg5,MATCH(lookupvalue,code,0))","v":0},{"$f":"INDEX(elevdf5,MATCH(lookupvalue,code,0))","v":0},{"$f":"SUM(F32:G32)","v":0},{"$f":"C32+F32","v":0},{"$f":"D32+G32","v":0},{"$f":"I32+J32","v":0},"أقل من 6 سنوات"]
[null,"6 ans",{"$f":"INDEX(elevng6,MATCH(lookupvalue,code,0))","v":0},{"$f":"INDEX(elevnf6,MATCH(lookupvalue,code,0))","v":0},{"$f":"SUM(C33:D33)","v":0},{"$f":"INDEX(elevdg6,MATCH(lookupvalue,code,0))","v":0},{"$f":"INDEX(elevdf6,MATCH(lookupvalue,code,0))","v":0},{"$f":"SUM(F33:G33)","v":0},{"$f":"C33+F33","v":0},{"$f":"D33+G33","v":0},{"$f":"I33+J33","v":0},"6 سنوات"]
[null,"7 ans",{"$f":"INDEX(elevng7,MATCH(lookupvalue,code,0))","v":0},{"$f":"INDEX(elevnf7,MATCH(lookupvalue,code,0))","v":0},0,{"$f":"INDEX(elevdg7,MATCH(lookupvalue,code,0))","v":0},{"$f":"INDEX(elevdf7,MATCH(lookupvalue,code,0))","v":0},0,0,0,0,"7 سنوات"]
[null,"8 ans",{"$f":"INDEX(elevng8,MATCH(lookupvalue,code,0))","v":0},{"$f":"INDEX(elevnf8,MATCH(lookupvalue,code,0))","v":0},0,{"$f":"INDEX(elevdg8,MATCH(lookupvalue,code,0))","v":0},{"$f":"INDEX(elevdf8,MATCH(lookupvalue,code,0))","v":0},0,0,0,0,"8 سنوات"]
[null,"9 ans",{"$f":"INDEX(elevng9,MATCH(lookupvalue,code,0))","v":0},{"$f":"INDEX(elevnf9,MATCH(lookupvalue,code,0))","v":0},0,{"$f":"INDEX(elevdg9,MATCH(lookupvalue,code,0))","v":0},{"$f":"INDEX(elevdf9,MATCH(lookupvalue,code,0))","v":0},0,0,0,0,"9 سنوات"]
[null,"10 ans",{"$f":"INDEX(elevng10,MATCH(lookupvalue,code,0))","v":0},{"$f":"INDEX(elevnf10,MATCH(lookupvalue,code,0))","v":0},0,{"$f":"INDEX(elevdg10,MATCH(lookupvalue,code,0))","v":0},{"$f":"INDEX(elevdf10,MATCH(lookupvalue,code,0))","v":0},0,0,0,0,"10 سنوات"]
[null,"11 ans",{"$f":"INDEX(elevng11,MATCH(lookupvalue,code,0))","v":0},{"$f":"INDEX(elevnf11,MATCH(lookupvalue,code,0))","v":0},0,{"$f":"INDEX(elevdg11,MATCH(lookupvalue,code,0))","v":0},{"$f":"INDEX(elevdf11,MATCH(lookupvalue,code,0))","v":0},0,0,0,0,"11 سنة"]
[null,"12 ans",{"$f":"INDEX(elevng12,MATCH(lookupvalue,code,0))","v":0},{"$f":"INDEX(elevnf12,MATCH(lookupvalue,code,0))","v":0},0,{"$f":"INDEX(elevdg12,MATCH(lookupvalue,code,0))","v":0},{"$f":"INDEX(elevdf12,MATCH(lookupvalue,code,0))","v":0},0,0,0,0,"12 سنة"]
[null,"13 ans",{"$f":"INDEX(elevng13,MATCH(lookupvalue,code,0))","v":0},{"$f":"INDEX(elevnf13,MATCH(lookupvalue,code,0))","v":0},0,{"$f":"INDEX(elevdg13,MATCH(lookupvalue,code,0))","v":0},{"$f":"INDEX(elevdf13,MATCH(lookupvalue,code,0))","v":0},0,0,0,0,"13 سنة"]
[null,"14 ans",{"$f":"INDEX(elevng14,MATCH(lookupvalue,code,0))","v":0},{"$f":"INDEX(elevnf14,MATCH(lookupvalue,code,0))","v":0},0,{"$f":"INDEX(elevdg14,MATCH(lookupvalue,code,0))","v":0},{"$f":"INDEX(elevdf14,MATCH(lookupvalue,code,0))","v":0},0,0,0,0,"14 سنة"]
[null,"15 ans",{"$f":"INDEX(elevng15,MATCH(lookupvalue,code,0))","v":0},{"$f":"INDEX(elevnf15,MATCH(lookupvalue,code,0))","v":0},0,{"$f":"INDEX(elevdg15,MATCH(lookupvalue,code,0))","v":0},{"$f":"INDEX(elevdf15,MATCH(lookupvalue,code,0))","v":0},0,0,0,0,"15 سنة"]
[null,"16 ans",{"$f":"INDEX(elevng16,MATCH(lookupvalue,code,0))","v":0},{"$f":"INDEX(elevnf16,MATCH(lookupvalue,code,0))","v":0},0,{"$f":"INDEX(elevdg16,MATCH(lookupvalue,code,0))","v":0},{"$f":"INDEX(elevdf16,MATCH(lookupvalue,code,0))","v":0},0,0,0,0,"16 سنة"]
[null,"17 ans",{"$f":"INDEX(elevng17,MATCH(lookupvalue,code,0))","v":0},{"$f":"INDEX(elevnf17,MATCH(lookupvalue,code,0))","v":0},0,{"$f":"INDEX(elevdg17,MATCH(lookupvalue,code,0))","v":0},{"$f":"INDEX(elevdf17,MATCH(lookupvalue,code,0))","v":0},0,0,0,0,"17 سنة"]
[null,"plus de 17 ans",{"$f":"INDEX(elevng18,MATCH(lookupvalue,code,0))","v":0},{"$f":"INDEX(elevnf18,MATCH(lookupvalue,code,0))","v":0},0,{"$f":"INDEX(elevdg18,MATCH(lookupvalue,code,0))","v":0},{"$f":"INDEX(elevdf18,MATCH(lookupvalue,code,0))","v":0},0,0,0,0,"أكثر من 17 سنة"]
[null,"Total",{"$f":"SUM(C32:C45)","v":0},{"$f":"SUM(D32:D45)","v":0},0,0,0,0,0,0,0,"المجموع"]
[]
[]
[null,"2.5  Langues et matières optionnelles  اللغات والمواد الاختيارية",null,null,null,null,null,"توقيع السيد(ة) المدير(ة):  "]
[]
[null,null,"Classes\nالأقسام","Garçons\nذكور","Filles\nإناث","Total\nمجموع"]
[null,"Anglais                        انجليزية",{"$f":"INDEX(clan,MATCH(lookupvalue,code,0))","v":0},{"$f":"INDEX(ang,MATCH(lookupvalue,code,0))","v":0},{"$f":"INDEX(anf,MATCH(lookupvalue,code,0))","v":0},{"$f":"D52+E52","v":0}]
[null,"Espagnol                      اسبانية"]
[null,"Allemand                      المانية"]
[null,"Italien                            ايطالية"]
[null,"Amazighia                   امازيغية",{"$f":"INDEX(clamazg,MATCH(lookupvalue,code,0))","v":0},{"$f":"INDEX(amazg,MATCH(lookupvalue,code,0))","v":0},{"$f":"INDEX(amazf,MATCH(lookupvalue,code,0))","v":0},{"$f":"D56+E56","v":0}]
[null,"Informatique              إعلاميات",{"$f":"INDEX(clinf,MATCH(lookupvalue,code,0))","v":0},{"$f":"INDEX(infg,MATCH(lookupvalue,code,0))","v":0},{"$f":"INDEX(inff,MATCH(lookupvalue,code,0))","v":0},{"$f":"D57+E57","v":0}]
[null,"Musique                      موسيقى",null,null,null,{"$f":"D58+E58","v":0}]
[]
[null,"2.6  Retard scolaire                                             التأخـــر المدرسي",null,null,null,null,null,"2.7  Mouvement des élèves                      حركــية التلاميذ"]
[]
[null,null,null,"Garçons\nذكور","Filles\nإناث","Total\nمجموع",null,null,null,null,"Garçons\nذكور","Filles\nإناث","Total\nمجموع"]
[null,"Elèves ayant doublé une année",null,{"$f":"INDEX(boublg1,MATCH(lookupvalue,code,0))","v":0},{"$f":"INDEX(boublf1,MATCH(lookupvalue,code,0))","v":0},{"$f":"D63+E63","v":0},null,"Arrivées du public ",null,null,{"$f":"INDEX(arpubg,MATCH(lookupvalue,code,0))","v":0},{"$f":"INDEX(arpubf,MATCH(lookupvalue,code,0))","v":0},{"$f":"K63+L63","v":0}]
[null,"تلاميذ كرروا سنة واحدة",null,{"$f":"INDEX(amazg,MATCH(lookupvalue,code,0))","v":0},{"$f":"INDEX(amazg,MATCH(lookupvalue,code,0))","v":0},null,null,"الوافدون من التعليم العمومي"]
[null,"Elèves ayant doublé deux années",null,{"$f":"INDEX(boublg2,MATCH(lookupvalue,code,0))","v":0},{"$f":"INDEX(boublf2,MATCH(lookupvalue,code,0))","v":0},{"$f":"D65+E65","v":0},null,"Arrivées du privé",null,null,{"$f":"INDEX(arprivg,MATCH(lookupvalue,code,0))","v":0},{"$f":"INDEX(arprivf,MATCH(lookupvalue,code,0))","v":0},{"$f":"K65+L65","v":0}]
[null,"تلاميذ كرروا سنين",null,{"$f":"INDEX(amazg,MATCH(lookupvalue,code,0))","v":0},{"$f":"INDEX(amazg,MATCH(lookupvalue,code,0))","v":0},null,null,"الوافدون من التعليم الخصوصي"]
[null,"Elèves ayant doublé trois années",null,{"$f":"INDEX(boublg3,MATCH(lookupvalue,code,0))","v":0},{"$f":"INDEX(boublf3,MATCH(lookupvalue,code,0))","v":0},{"$f":"D67+E67","v":0},null,"Arrivées de l'étranger",null,null,{"$f":"INDEX(arexg,MATCH(lookupvalue,code,0))","v":0},{"$f":"INDEX(arexf,MATCH(lookupvalue,code,0))","v":0},{"$f":"K67+L67","v":0}]
[null,"تلاميذ كرروا ثلاث سنوات",null,{"$f":"INDEX(amazg,MATCH(lookupvalue,code,0))","v":0},{"$f":"INDEX(amazg,MATCH(lookupvalue,code,0))","v":0},null,null,"الوافدون من الخارج"]
[null,"Elèves ayant doublé quatre années",null,{"$f":"INDEX(boublg4,MATCH(lookupvalue,code,0))","v":0},{"$f":"INDEX(boublf4,MATCH(lookupvalue,code,0))","v":0},{"$f":"D69+E69","v":0},null,"Départs de l'établissement",null,null,{"$f":"INDEX(abodg,MATCH(lookupvalue,code,0))","v":0},{"$f":"INDEX(abodf,MATCH(lookupvalue,code,0))","v":0},{"$f":"K69+L69","v":0}]
[null,"تلاميذ كرروا أربع سنوات",null,{"$f":"INDEX(amazg,MATCH(lookupvalue,code,0))","v":0},{"$f":"INDEX(amazg,MATCH(lookupvalue,code,0))","v":0},null,null,"المغادرون"]
[null,"Elèves ayant doublé cinq années et +",null,{"$f":"INDEX(boublg5,MATCH(lookupvalue,code,0))","v":0},{"$f":"INDEX(boublf5,MATCH(lookupvalue,code,0))","v":0},{"$f":"D71+E71","v":0},null,"Non réinscrits",null,"جدد",{"$f":"INDEX(noninsng,MATCH(lookupvalue,code,0))","v":0},{"$f":"INDEX(noninsnf,MATCH(lookupvalue,code,0))","v":0},{"$f":"K71+L71","v":0}]
[null,"تلاميذ كرروا خمس سنوات وأكثر",null,{"$f":"INDEX(amazg,MATCH(lookupvalue,code,0))","v":0},{"$f":"INDEX(amazg,MATCH(lookupvalue,code,0))","v":0},null,null,"غير الملتحقين",null,"مكررون",{"$f":"INDEX(noninsdg,MATCH(lookupvalue,code,0))","v":0},{"$f":"INDEX(noninsdf,MATCH(lookupvalue,code,0))","v":0},{"$f":"K72+L72","v":0}]
[null,null,null,null,{"$f":"IF(E9=\"1061101010\",IF(AND((F63+F65+F67+F69+F71)=H46,(E63+E65+E67+E69+E71)=G46),\"OK\",\"Erreur\"),IF(AND((F63+F65+F67+F69+F71)>=H46,(E63+E65+E67+E69+E71)>=G46),\"OK\",\"Erreur\"))","v":"OK"},null,null,"Réintégrés",null,null,{"$f":"INDEX(oublg,MATCH(lookupvalue,code,0))","v":0},{"$f":"INDEX(oublf,MATCH(lookupvalue,code,0))","v":0},{"$f":"K73+L73","v":0}]
[null,null,null,null,null,null,null,"المدمجون",null,null,{"$f":"INDEX(amazg,MATCH(lookupvalue,code,0))","v":0},{"$f":"INDEX(amazg,MATCH(lookupvalue,code,0))","v":0}]

{"sheet":"فضاءات الاستقبال","index":6,"n_rows":71,"n_cols":13,"rows_kept":71,"cut":false,"hidden":false,"merged":[[69,0,69,2],[53,0,53,2],[56,0,56,12],[58,0,68,0],[58,1,59,1],[60,1,60,2],[61,1,62,1],[63,1,64,1],[65,1,66,1],[67,1,68,1],[37,0,37,2],[40,0,40,12],[42,0,52,0],[42,1,43,1],[44,1,44,2],[45,1,46,1],[47,1,48,1],[49,1,50,1],[51,1,52,1],[21,0,21,2],[24,0,24,12],[25,9,37,12],[26,0,36,0],[26,1,27,1],[28,1,28,2],[29,1,30,1],[31,1,32,1],[33,1,34,1],[35,1,36,1],[8,0,8,12],[10,0,20,0],[10,1,11,1],[12,1,12,2],[13,1,14,1],[15,1,16,1],[17,1,18,1],[19,1,20,1],[0,0,0,5],[2,0,2,12],[4,0,4,12],[6,1,6,2],[6,4,6,5],[6,7,6,11]]}
["Questionnaire  Q03   استمــــارة ",null,null,null,null,null,"Public عمومي",null,null,"Privé خصوصي"]
[]
["Espace d'accueil : Bloc administratif et sanitaire, Hebergement et Restauration, Sportif et Logement     "]
[]
["فضاءات الاستقبال : المرافق الإدارية  و الصحية و الإطعام والإيواء و الملاعب الرياضية والسكنيات"]
[]
[null,"Etablissement  المؤسسة",null,null,{"$f":"+استقبال!E9","v":"01495Z"},null,null,{"$f":"+استقبال!E6","v":"مدرسة الأمـــل الابتدائية"}]
[]
["BLOC ADMINISTRATIF ET SANITAIRE    المرافق الإدارية  و الصحية"]
[null,null,null,"Bureaux Administratifs\nمكاتب إدارية\n2000","Salle des enseignants\nقاعة الاساتذة\n2005","Entrepot\nمستودع\n\n2007","Salle d'Archives \nقاعة الأرشيف\n2009","Salle de conférence\nقاعة المحاضرات\n2011","Infirmerie\nالمصحة\n\n2013","Salle de prière\nالمسجد\n2015","Salle de permanence\nقاعة المداومة\n2017","Bibliothèque\nمكتبة\n\n2021","Latrines\nالمرافق الصحية\n\n2023"]
[" disponibles","Nombre","Bon Etat"]
[null,null,"Défectueux"]
[null,"dont Nouvelles créations"]
[null,"dont utilisées ","Bon Etat"]
[null,null,"Défectueux"]
[null,"dont utilisées pour autre fin","Bon Etat"]
[null,null,"Défectueux"]
[null,"dont prêtés ","Bon Etat"]
[null,null,"Défectueux"]
[null,"dont fermés ","Bon Etat"]
[null,null,"Défectueux"]
["Empruntés "]
[null,null,null,{"$f":"IF(AND(D11+D12=D14+D15+D16+D17+D18+D19+D20+D21,D12=D15+D17+D19+D21,D11=D14+D16+D18+D20),\"OK\",\"ERREUR\")","v":"OK"},"OK","OK","OK","OK","OK","OK","OK","OK","OK"]
[]
["BLOC RESTAURATION ET HEBERGEMENT    مرافق الإطعام والإيواء"]
[null,null,null,"Refectoir Cantine scolaire\nقاعة الاطعام\n4001","Cuisine Cantine scolaire\nالمطبخ\n4003","Dortoir\nمراقد\n\n\n4101","Pioles\nغرف النوم\n\n\n4103","Foyer\nمأوى\n\n\n4105","Refectoir Inernat\n قاعة الإطعام للداخلية\n4107","\nتوقيع السيد(ة) المدير(ة):"]
[" disponibles","Nombre","Bon Etat"]
[null,null,"Défectueux"]
[null,"dont Nouvelles créations"]
[null,"dont utilisées ","Bon Etat"]
[null,null,"Défectueux"]
[null,"dont utilisées pour autre fin","Bon Etat"]
[null,null,"Défectueux"]
[null,"dont prêtés ","Bon Etat"]
[null,null,"Défectueux"]
[null,"dont fermés ","Bon Etat"]
[null,null,"Défectueux"]
["Empruntés "]
[null,null,null,{"$f":"IF(AND(D27+D28=D30+D31+D32+D33+D34+D35+D36+D37,D28=D31+D33+D35+D37,D27=D30+D32+D34+D36),\"OK\",\"ERREUR\")","v":"OK"},"OK","OK","OK","OK","OK"]
[]
["BLOC SPORTIF    المرافق الرياضية"]
[null,null,null,"Terrain de Foot-ball\nملعب كرة القدم\n\n5003","Terrain de Hand-Ball\nملعب كرة اليد\n\n5005","Terrain de Volly-Ball\n ملعب الكرة الطائرة\n5007","Terrain de Basket-Ball \n ملعب كرة السلة\n\n5009","Piste \nحلبة\n\n\n5015","Salle de gymnastique\nقاعة الجمباز\n\n5017","Vestiaire pour Garçons\n  مستودع للذكور \n\n5019","Vestiaire pour Filles\nمستودع للإناث \n\n5021"]
[" disponibles","Nombre","Bon Etat"]
[null,null,"Défectueux"]
[null,"dont Nouvelles créations"]
[null,"dont utilisées ","Bon Etat"]
[null,null,"Défectueux"]
[null,"dont utilisées pour autre fin","Bon Etat"]
[null,null,"Défectueux"]
[null,"dont prêtés ","Bon Etat"]
[null,null,"Défectueux"]
[null,"dont fermés ","Bon Etat"]
[null,null,"Défectueux"]
["Empruntés "]
[null,null,null,{"$f":"IF(AND(D43+D44=D46+D47+D48+D49+D50+D51+D52+D53,D44=D47+D49+D51+D53,D43=D46+D48+D50+D52),\"OK\",\"ERREUR\")","v":"OK"},"OK","OK","OK","OK","OK","OK","OK"]
[]
["BLOC LOGEMENTS    السكنيات"]
[null,null,null,"Logement pour Directeur\nسكن المدير\n\n\n\n6001","Logement pour Censeur\nسكن الناظر \n\n\n\n\n6005","Logement pour surveillants généraux d'externat\nسكن الحراس العامين للخارجية\n6007","Logement pour surveillants généraux d'internat\nسكن حارس عام الداخلية\n6009","Logement pour Econome / intendant\nسكن المقتصد \\ الممون\n\n6011","Logement pour enseignants\nسكن المدرسين\n\n\n\n6013","Logement pour le concièrge\nسكن الحارس\n\n\n\n6015","Autre Logement \nسكن آخر\n\n\n\n\n6099"]
[" disponibles","Nombre","Bon Etat"]
[null,null,"Défectueux"]
[null,"dont Nouvelles créations"]
[null,"dont utilisées ","Bon Etat"]
[null,null,"Défectueux"]
[null,"dont utilisées pour autre fin","Bon Etat"]
[null,null,"Défectueux"]
[null,"dont prêtés ","Bon Etat"]
[null,null,"Défectueux"]
[null,"dont fermés ","Bon Etat"]
[null,null,"Défectueux"]
["Empruntés "]
[null,null,null,{"$f":"IF(AND(D59+D60=D62+D63+D64+D65+D66+D67+D68+D69,D60=D63+D65+D67+D69,D59=D62+D64+D66+D68),\"OK\",\"ERREUR\")","v":"OK"},"OK","OK","OK","OK","OK","OK","OK"]

{"sheet":"مدرسون-حجرات","index":7,"n_rows":35,"n_cols":27,"rows_kept":35,"cut":false,"hidden":false,"merged":[[0,0,0,15],[0,16,0,18],[0,21,0,23],[2,0,2,26],[4,1,4,6],[4,13,4,23],[4,8,4,11],[6,1,6,8],[6,9,6,16],[6,17,6,24],[6,25,6,26],[7,1,7,2],[7,3,7,4],[7,5,7,6],[7,7,7,8],[7,9,7,10],[7,11,7,12],[7,25,7,26],[7,13,7,14],[7,15,7,16],[7,17,7,18],[7,19,7,20],[7,21,7,22],[19,0,32,0],[19,1,23,1],[19,2,20,6],[19,7,19,10],[19,11,19,12],[20,7,20,10],[23,11,23,12],[24,2,25,6],[24,7,24,10],[24,11,24,12],[22,2,23,6],[30,1,31,1],[30,2,30,10],[30,11,30,12],[25,1,29,1],[26,2,27,6],[7,23,7,24],[20,11,20,12],[20,13,20,14],[21,2,21,10],[21,11,21,12],[21,13,21,14],[19,17,20,19],[18,11,18,12],[18,13,18,14],[19,13,19,14],[26,13,26,14],[27,7,27,10],[27,11,27,12],[27,13,27,14],[22,7,22,10],[22,11,22,12],[22,13,22,14],[23,7,23,10],[25,13,25,14],[23,13,23,14],[24,13,24,14],[25,7,25,10],[25,11,25,12],[26,7,26,10],[26,11,26,12],[30,13,30,14],[31,2,31,10],[31,11,31,12],[31,13,31,14],[28,13,28,14],[29,7,29,10],[29,11,29,12],[29,13,29,14],[28,2,29,6],[28,7,28,10],[28,11,28,12],[34,11,34,12],[34,13,34,14],[32,1,32,10],[32,11,32,12],[32,13,32,14]]}
["Questionnaire  Q03/ Primaire   استمارة الإبتدائي  ",null,null,null,null,null,null,null,null,null,null,null,null,null,null,null,"Public عمومي",null,null,null,null,"Privé خصوصي"]
[]
["Espace d'accueil : Bloc pédagogique  فضاءات الاستقبال : المرافق التربوية"]
[]
[null,"Etablissement        المؤسسة",null,null,null,null,null,null,{"$f":"مسك1!Q1","v":"01495Z"},null,null,null,null,{"$f":"مسك1!E1","v":"مدرسة الأمـــل الابتدائية"}]
[]
[null,"Classes à cours  unique   أقسام ذات مستوى وحيد",null,null,null,null,null,null,null,"classes à cours multiples   أقسام متعددة المستويات",null,null,null,null,null,null,null,"Ensemble المجموع",null,null,null,null,null,null,null,"Enseignants\n"]
[null,1,null,1.5,null,2,null,"Ensemble",null,1,null,1.5,null,2,null,"Ensemble",null,1,null,1.5,null,2,null,"Ensemble",null,"المدرسون"]
[null,"classes","Elèves","classes","Elèves","classes","Elèves","classes","Elèves","classes","Elèves","classes","Elèves","classes","Elèves","classes","Elèves","classes","Elèves","classes","Elèves","classes","Elèves","classes","Elèves","Arabe ","Français "]
[null,"  الأقسام","  التلاميذ","  الأقسام","  التلاميذ","  الأقسام","  التلاميذ","  الأقسام","  التلاميذ","  الأقسام","  التلاميذ","  الأقسام","  التلاميذ","  الأقسام","  التلاميذ","  الأقسام","  التلاميذ","  الأقسام","  التلاميذ","  الأقسام","  التلاميذ","  الأقسام","  التلاميذ","  الأقسام","  التلاميذ","العربية"," الفرنسية"]
["1ère année\nالسنة الأولى",{"$f":"+مسك2!D8","v":0},{"$f":"SUM(مسك1!H7:XFD7)","v":0},null,null,null,null,{"$f":"B11+D11","v":0},0,null,null,null,null,null,null,{"$f":"J11+L11","v":0},0,{"$f":"B11+J11","v":0},{"$f":"C11+K11","v":0},0,0,0,0,0,0]
["2ème année\nالسنة الثانية ",{"$f":"+مسك2!D9","v":0},{"$f":"SUM(مسك1!H8:XFD8)","v":0},null,null,null,null,0,0,null,null,null,null,null,null,0,0,0,0,0,0,0,0,0,0]
["3ème année\nالسنة الثالثة ",{"$f":"+مسك2!D10","v":0},{"$f":"SUM(مسك1!H9:XFD9)","v":0},null,null,null,null,0,0,null,null,null,null,null,null,0,0,0,0,0,0,0,0,0,0]
["4ème année\nالسنة الرابعة ",{"$f":"+مسك2!D11","v":0},{"$f":"SUM(مسك1!H10:XFD10)","v":0},null,null,null,null,0,0,null,null,null,null,null,null,0,0,0,0,0,0,0,0,0,0]
["5ème année\nالسنة الخامسة ",{"$f":"+مسك2!D12","v":0},{"$f":"SUM(مسك1!H11:XFD11)","v":0},null,null,null,null,0,0,null,null,null,null,null,null,0,0,0,0,0,0,0,0,0,0]
["6ème année\nالسنة السادسة ",{"$f":"+مسك2!D13","v":0},{"$f":"SUM(مسك1!H12:XFD12)","v":0},null,null,null,null,0,0,null,null,null,null,null,null,0,0,0,0,0,0,0,0,0,0]
["Total\nالمجموع",{"$f":"SUM(B11:B16)","v":0},{"$f":"SUM(C11:C16)","v":0},0,0,0,0,0,0,0,0,0,0,0,0,0,0,0,0,0,0,0,0,0,0,0,0]
[]
[null,null,null,null,null,null,null,null,null,null,null,"Salle d'Enseignement Général\nحجرة التعليم العام\n\n 3001",null,"Salle d'informatique/ multimédia \nقاعة الإعلاميات ومتعددة الوسائط \n3105"]
["Salles de classes \nالحجرات الدراسية"," disponibles ","Nombre      العدد ",null,null,null,null,"Bon Etat                     صالحة"]
[null,null,null,null,null,null,null,"Défectueux          غير صالحة"]
[null,null,"dont Nouvelles créations         الحجرات الجديدة"]
[null,null,"dont utilisées pour l'enseignement\nالمستعملة منها للتدريس",null,null,null,null,"Bon Etat                     صالحة"]
[null,null,null,null,null,null,null,"Défectueux          غير صالحة"]
[null,null,"dont utilisées pour autre fin \nالمستعملة منها لأغراض أخرى",null,null,null,null,"Bon Etat                     صالحة"]
[null,"المتوفرة",null,null,null,null,null,"Défectueux          غير صالحة"]
[null,null,"dont prêtés      المعارة منها   (*)",null,null,null,null,"Bon Etat                     صالحة"]
[null,null,null,null,null,null,null,"Défectueux          غير صالحة"]
[null,null,"dont fermés  المغلقة منها",null,null,null,null,"Bon Etat                     صالحة"]
[null,null,null,null,null,null,null,"Défectueux          غير صالحة"]
[null,"Autres salles","Empruntés   المستعارة"]
[null,null,"Autre type de locaux   حجرات أخرى"]
[null,"Total utilisées     مجموع الحجرات المستعملة  ",null,null,null,null,null,null,null,null,null,{"$f":"L23+L24+L31+L32","v":0},null,{"$f":"N23+N24+N31+N32","v":0}]
[]
[null,null,null,null,null,null,null,null,null,null,null,{"$f":"IF(AND(L20+L21=L23+L24+L25+L26+L27+L28+L29+L30:L30,L20=L23+L25+L27+L29,L21=L24+L26+L28+L30),\"OK\",\"ERREUR\")","v":"OK"},null,{"$f":"IF(N20+N21=N23+N24+N25+N26+N27+N28+N29+N30:N30,\"OK\",\"ERREUR\")","v":"OK"}]

{"sheet":"دعم مدرسي","index":8,"n_rows":111,"n_cols":20,"rows_kept":111,"cut":false,"hidden":false,"merged":[[1,0,1,19],[2,0,2,19],[3,0,3,19],[5,1,5,19],[7,5,7,6],[7,8,7,19],[9,5,9,6],[9,8,9,19],[11,5,11,6],[11,8,11,19],[13,5,13,6],[13,8,13,19],[27,1,27,10],[15,5,15,6],[15,8,15,19],[16,1,16,19],[18,11,18,13],[20,11,20,13],[20,17,20,19],[22,6,22,7],[22,11,22,13],[22,17,22,19],[24,7,24,9],[25,7,25,9],[29,1,29,7],[29,9,29,11],[29,13,29,15],[29,17,29,19],[31,1,31,2],[31,4,31,7],[33,1,33,2],[33,4,33,7],[35,1,35,2],[35,4,35,7],[36,1,36,2],[36,4,36,7],[43,1,43,2],[43,4,43,7],[37,1,37,2],[37,4,37,7],[39,1,39,2],[39,4,39,7],[41,1,41,2],[41,4,41,7]]}
[]
["Questionnaire  Q14 استمــارة"]
["Fiche de distribution des manuels et fournitures scolaires à la rentrée scolaire"]
["بطاقة توزيع الكتب والأدوات المدرسية عند الدخول المدرسي"]
[]
["I/."," IDENTIFICATION DE L'ETABLISSEMENT            تعريف المؤسسة       "]
[]
[null,"  Etablissement       المؤسســـة",null,null,null,{"$f":"مسك1!Q1","v":"01495Z"},null,null,{"$f":"مسك1!E1","v":"مدرسة الأمـــل الابتدائية"}]
[]
[null,"Région","الجهة",null,null,"06",null,null,"الدار البيضاء سطات"]
[]
[null,"Province","الإقليم",null,null,142,null,null,"عمالة مقاطعات الفداء مرس السلطان"]
[]
[null,"Commune","الجماعة",null,null,{"$f":"IF(I14=\"\",\"\",VLOOKUP(I14,$L$110:$M$111,2,0))","v":1420111},null,null,{"$f":"غلاف!Y27","v":"مقاطعة الفداء"}]
[]
[null,"Milieu","الوسط",null,null,"U",null,null,"حضري"]
["II/."," DONNATEURS         المانحــون"]
[]
[null,null,null,null,null,null,"Etat\nالدولة",null,null,null,null,"Collectivités locales\nالجماعات المحلية",null,null,null,null,null,"Privé\nخاص"]
[]
[null,null,null,null,null,null,"Fondation\nمؤسسة",null,null,null,null,"ONG interne\nهيئة غير حكومية داخلية",null,null,null,null,null,"ONG externe\nهيئة غير حكومية خارجية"]
[]
[null,null,null,null,null,null,"Association interne\nجمعية داخلية",null,null,null,null,"Association externe\nجمعية خارجية",null,null,null,null,null,"Mecenats\nمحــســـنون"]
[]
[null,null,null,null,null,null,"Autre\nآخـــر"]
[]
["III/.","REPARTITION DES BENEFICIAIRES PAR TYPE D'APPUI, CYCLE ET SEXE"]
[null,"توزيع المستفيدين حسب نوع الدعم السلك والجنس"]
[]
[null," Type d'appui   نوع الدعــم",null,null,null,null,null,null,null,"Primaire\nالابتدائي",null,null,null,"Collégial\nالإعدادي",null,null,null,"Qualifiant\nالتأهيلي"]
[]
[null,"Code  الرمز\n  ",null,null," Type d'appui   نوع الدعــم",null,null,null,null,"Total\nمجموع",null,"Filles\nإناث",null,"Total\nمجموع",null,"Filles\nإناث",null,"Total\nمجموع",null,"Filles\nإناث"]
[]
[null,"I_2_I",null,null,"Kits complets"]
[]
[null,"I_3_I",null,null,"Manuels et fournitures"]
[null,"I_4_I",null,null,"Lunettes"]
[null,"I_5_I",null,null,"Vélos"]
[]
[null,"I_6_I",null,null,"Uniformes scolaires"]
[]
[null,"I_8_I",null,null,"Manuels"]
[]
[null,"I_7_I",null,null,"Autre"]
[]
[]
[]
[]
[]
[]
[]
[]
[]
[]
[]
[]
[]
[]
[]
[]
[]
[]
[]
[]
[]
[]
[]
[]
[]
[]
[]
[]
[]
[]
[]
[]
[]
[]
[]
[]
[]
[]
[]
[]
[]
[]
[]
[]
[]
[]
[]
[]
[]
[]
[]
[]
[]
[]
[]
[]
[]
[]
[]
[]
[]
[]
[]
[]
[]
[null,null,null,null,null,null,null,null,null,null,null,"مقاطعة الفداء",1420111]
[null,null,null,null,null,null,null,null,null,null,null,"مقاطعة مرس السلطان",1420113]

{"sheet":"تعليم أولي","index":9,"n_rows":56,"n_cols":14,"rows_kept":56,"cut":false,"hidden":false,"merged":[[39,5,40,7],[39,8,40,10],[39,11,40,13],[55,2,55,4],[55,5,55,6],[55,7,55,8],[55,9,55,11],[54,2,54,4],[54,5,54,6],[54,7,54,8],[54,9,54,11],[51,2,51,4],[51,5,51,6],[51,7,51,8],[51,9,51,11],[52,2,52,4],[52,5,52,6],[52,7,52,8],[52,9,52,11],[53,2,53,4],[53,5,53,6],[53,7,53,8],[53,9,53,11],[50,9,50,11],[46,2,46,4],[46,5,46,6],[46,7,46,8],[46,9,46,11],[47,2,47,4],[47,5,47,6],[47,7,47,8],[47,9,47,11],[49,2,49,4],[49,5,49,6],[49,7,49,8],[49,9,49,11],[50,2,50,4],[50,5,50,6],[50,7,50,8],[42,1,42,13],[44,5,44,6],[44,7,44,8],[45,2,45,4],[45,5,45,6],[45,7,45,8],[45,9,45,11],[19,10,19,12],[21,2,21,3],[22,2,22,3],[23,2,23,3],[29,2,29,4],[29,5,29,7],[29,8,29,10],[29,11,29,13],[16,2,16,3],[18,2,18,7],[19,2,20,3],[19,4,19,6],[19,7,19,9],[14,2,14,3],[14,5,14,8],[4,2,4,3],[4,5,4,12],[15,2,15,3],[15,5,15,8],[0,0,0,14],[1,0,1,14],[3,1,3,10],[10,1,10,10],[13,2,13,3]]}
["Questionnaire  Q04"]
["Scolarité des élèves de l'enseignement préscolaire   تمدرس تلاميذ التعليم الأولي"]
[]
["I/."," IDENTIFICATION DE L'ÉTABLISSEMENT"]
[null,"1.1  Etablissement  المؤسسات",{"$f":"مسك1!Q1","v":"01495Z"},null,null,{"$f":"مسك1!E1","v":"مدرسة الأمـــل الابتدائية"}]
[]
[null,"1.2  Secteur                 القطاع  ",null,null,"Public ","عمومي",null,null,"Privé","خصوصي"]
[]
[null,"1.3 Type Enseignement نوع التعليم",null,null,null,"Moderne","عصري",null,null,"Traditionnel","تقليدي"]
[]
["II/."," Statistiques   إحصائيات "]
[null,"2.1 Locaux et espaces scolaires   الحجرات والفضاءات المدرسية"]
[]
[null,null,"Nombre العدد",null,null,null,null,null,null,"Garçons\nالذكور","Filles\nالإناث","Total\nالمجموع"]
[null,"Salles de classes\n حجرات الدرس",null,null,"*","Bénéficiaires de la restauration\nالمستفيدون من الإطعام",null,null,null,null,null,{"$f":"J15+K15","v":0}]
[null,"Bureaux Administratifs\nمكاتب إدارية",null,null,null,"Bénéficiaires de transport scolaire\nالمستفيدون من النقل المدرسي",null,null,null,null,null,{"$f":"J16+K16","v":0}]
[]
[null,"2.2  Elèves - Classes التلاميذ والأقسام"]
[]
[null,null,"Garderie\nرياض الأطفال",null,"CCU أقسام من مستوى واحد",null,null,"CCM أقسام متعددة المستويات",null,null,"Ensemble  المجموع"]
[null,null,null,null,"Niveau 1","Niveau 2","Total","Niveau 1","Niveau 2","Total","Niveau 1","Niveau 2","Total"]
[null,"Nombre de classes عدد الأقسام",null,null,null,null,{"$f":"E22+F22","v":0},null,null,{"$f":"H22+I22","v":0},{"$f":"E22+H22","v":0},0,{"$f":"K22+L22","v":0}]
[null,"Total élèves         مجموع التلامبذ  ",{"$f":"E38","v":0},null,null,null,{"$f":"E23+F23","v":0},null,null,{"$f":"H23+I23","v":0},0,0,{"$f":"K23+L23","v":0}]
[null,"dont filles                  الإناث منهم",{"$f":"D38","v":0},null,null,null,{"$f":"E24+F24","v":0},null,null,{"$f":"H24+I24","v":0},0,0,{"$f":"K24+L24","v":0}]
[]
[]
[]
[null,"2.3  Répartition des élèves par niveau, âge et sexe"]
[]
[null,null,"Garderie                رياض الأطفال ",null,null,"Niveau 1    المستوى ",null,null,"Niveau 2  المستوى",null,null,"Total Niveaux 1+2 المستوى"]
[null,"Age السن","Garçons","Filles","Total","Garçons","Filles","Total","Garçons","Filles","Total","Garçons","Filles","Total"]
[null,"2 ans                      سنتان",null,null,{"$f":"C32+D32","v":0}]
[null,"3 ans                ثلات سنوات",null,null,{"$f":"C33+D33","v":0}]
[null,"4 ans                أربع سنوات",null,null,null,null,null,{"$f":"F34+G34","v":0},null,null,{"$f":"I34+J34","v":0},{"$f":"F34+I34","v":0},0,{"$f":"L34+M34","v":0}]
[null,"5 ans               خمس سنوات",null,null,null,null,null,{"$f":"F35+G35","v":0},null,null,{"$f":"I35+J35","v":0},0,0,{"$f":"L35+M35","v":0}]
[null,"6 ans                ست سنوات",null,null,null,null,null,{"$f":"F36+G36","v":0},null,null,{"$f":"I36+J36","v":0},0,0,{"$f":"L36+M36","v":0}]
[null,"plus de 6 ans أكثرمن ست سنوات",null,null,null,null,null,{"$f":"F37+G37","v":0},null,null,{"$f":"I37+J37","v":0},0,0,{"$f":"L37+M37","v":0}]
[null,"Total                               المجموع ",{"$f":"SUM(C32:C37)","v":0},{"$f":"SUM(D32:D37)","v":0},0,0,0,0,0,0,0,0,0,0]
[]
[null,null,null,null,null,{"$f":"IF(AND(K23=H38,K24=G38),\"OK\",\"Erreur\")","v":"OK"},null,null,{"$f":"IF(AND(L23=K38,L24=J38),\"OK\",\"Erreur\")","v":"OK"},null,null,{"$f":"IF(AND(M23=N38,M24=M38),\"OK\",\"Erreur\")","v":"OK"}]
[]
[]
[null,"2.4  Personnel D'administration et de service et éducateurs par type de diplôme scolaire ou universitaire\n هيئة الإدارة والخدمات والمربون حسب اشهادة الدراسية أو الجامعية"]
[]
[null,null,null,null,null,"Total\nمجموع",null,"Femmes\nالنساء"]
[null,null,"Personnel Administratif",null,null,null,null,null,null,"هيئة الإدارة"]
[null,null,"Personnel de service",null,null,null,null,null,null,"هيئة الخدمات"]
[null,null,"Educateurs",null,null,{"$f":"SUM(F50:G56)","v":0},null,{"$f":"SUM(H50:I56)","v":0},null,"المربون"]
[]
[null,null,"Educateurs sans Bac",null,null,null,null,null,null,"مربون بدون بكالوريا"]
[null,null,"Educateurs ayant Bac",null,null,null,null,null,null,"مربون لهم بكالوريا"]
[null,null,"Educateurs ayant Bac + 1 ",null,null,null,null,null,null,"مربون لهم بكالوريا + سنة"]
[null,null,"Educateurs ayant Bac + 2 ",null,null,null,null,null,null,"مربون لهم بكالوريا + سنان"]
[null,null,"Educateurs ayant Bac + 3 ",null,null,null,null,null,null,"مربون لهم بكالوريا + 3 سنوات"]
[null,null,"Educateurs ayant Bac + 4 ",null,null,null,null,null,null,"مربون لهم بكالوريا + 4 سنوات"]
[null,null,"Educateurs ayant Bac + 5",null,null,null,null,null,null,"مربون لهم بكالوريا + 5 سنوات"]

{"sheet":"دوي الاحتياجات الخاصة","index":10,"n_rows":40,"n_cols":17,"rows_kept":40,"cut":false,"hidden":false,"merged":[[45,1,45,2],[25,2,25,4],[43,1,43,2],[18,5,18,7],[17,5,17,7],[27,2,28,2],[27,3,28,3],[29,2,30,2],[7,4,7,6],[23,1,23,17],[25,11,25,13],[17,2,17,4],[18,2,18,4],[16,14,16,16],[17,14,17,16],[18,14,18,16],[16,11,16,13],[12,1,12,17],[15,2,15,4],[15,5,15,7],[15,8,15,10],[15,14,15,16],[14,2,14,16],[15,11,15,13],[44,1,44,2],[42,7,42,9],[25,5,25,7],[25,8,25,10],[25,1,26,1],[16,8,16,10],[17,8,17,10],[18,8,18,10],[16,5,16,7],[29,3,30,3],[31,2,32,2],[31,3,32,3],[33,2,34,2],[35,2,36,2],[37,2,38,2],[33,3,34,3],[35,3,36,3],[37,3,38,3],[27,6,28,6],[29,6,30,6],[31,6,32,6],[33,6,34,6],[35,6,36,6],[37,6,38,6],[17,11,17,13],[18,11,18,13],[25,14,25,16],[0,0,0,8],[1,0,1,17],[10,9,10,10],[10,1,10,2],[10,3,10,4],[10,5,10,6],[10,7,10,8],[6,1,6,10],[7,1,7,3],[7,8,7,17],[16,2,16,4],[27,5,28,5],[29,5,30,5],[31,5,32,5],[33,5,34,5],[35,5,36,5],[37,5,38,5],[27,4,28,4],[29,4,30,4],[31,4,32,4],[33,4,34,4],[35,4,36,4],[37,4,38,4],[27,12,28,12],[29,12,30,12],[31,12,32,12],[33,12,34,12],[35,12,36,12],[37,12,38,12],[27,11,28,11],[29,11,30,11],[31,11,32,11],[33,11,34,11],[35,11,36,11],[37,11,38,11],[27,9,28,9],[29,9,30,9],[31,9,32,9],[33,9,34,9],[35,9,36,9],[37,9,38,9],[27,10,28,10],[29,10,30,10],[31,10,32,10],[33,10,34,10],[35,10,36,10],[37,10,38,10],[27,7,28,7],[29,7,30,7],[31,7,32,7],[33,7,34,7],[35,7,36,7],[37,7,38,7],[27,8,28,8],[29,8,30,8],[31,8,32,8],[33,8,34,8],[35,8,36,8],[37,8,38,8],[27,14,28,14],[29,14,30,14],[31,14,32,14],[33,14,34,14],[35,14,36,14],[37,14,38,14],[27,13,28,13],[29,13,30,13],[31,13,32,13],[33,13,34,13],[35,13,36,13],[37,13,38,13],[27,16,28,16],[29,16,30,16],[31,16,32,16],[33,16,34,16],[35,16,36,16],[37,16,38,16],[27,15,28,15],[29,15,30,15],[31,15,32,15],[33,15,34,15],[35,15,36,15],[37,15,38,15]]}
["Questionnaire  Q09    استمـــــارة",null,null,null,null,null,null,null,null,null,"Public عمومي",null,null,null,"Privé خصوصي"]
["Classes des enfants à besoins spécifiques publics    أقسام الأطفال ذوي الاحتياجات الخاصة بالعمومي"]
[]
[]
[]
[]
["I/."," IDENTIFICATION DE L'ÉTABLISSEMENT   تعـــريف المؤسســــة"]
[null,"1.1  Etablissement   المؤسســـة",null,null,{"$f":"مسك1!Q1","v":"01495Z"},null,null,null,{"$f":"مسك1!E1","v":"مدرسة الأمـــل الابتدائية"}]
[]
[]
["II/.","Statistiques    إحصائيات"]
[]
[null,"2.1 Elèves et Classes           التلاميذ والأقســـــام"]
[]
[null,null,"Elèves et classes selon le type d'handicap      التلاميذ والأقسام حسب نوع الإعـــــاقة"]
[null,null,"Handicapés moteur\nإعاقة حركية",null,null,"Non voyants\nمكفوفون",null,null,"Retards mentaux\nإعاقة عقلية",null,null,"Sourds Muets\nالصم والبكم",null,null,"Total\nمجموع"]
[null,"Nombre de classes\nمجموع الأقســـام",null,null,null,null,null,null,null,null,null,null,null,null,{"$f":"SUM(C17:N17)","v":0}]
[null,"Total élèves\nمجموع التلامــيذ",{"$f":"E40","v":0},null,null,{"$f":"H40","v":0},null,null,{"$f":"K40","v":0},null,null,{"$f":"N40","v":0},null,null,{"$f":"SUM(C18:N18)","v":0}]
[null,"dont filles\nالإناث منهم",{"$f":"D40","v":0},null,null,{"$f":"G40","v":0},null,null,{"$f":"J40","v":0},null,null,{"$f":"M40","v":0},null,null,{"$f":"SUM(C19:N19)","v":0}]
[]
[]
[]
[]
[null,"2.2  Répartition des élèves handicapés par âge et sexe  توزيع التلاميذ المعاقين حسب السن والجنس"]
[]
[null,"Age\nالسن","Handicapés moteur\nإعاقة حركية",null,null,"Non voyants\nمكفوفون",null,null,"Retards mentaux\nإعاقة عقلية",null,null,"Sourds Muets\nالصم والبكم",null,null,"Total\nمجموع"]
[null,null,"Garçons\nذكــــور","Filles\nإنـــاث","Total\nمجموع","Garçons\nذكــــور","Filles\nإنـــاث","Total\nمجموع","Garçons\nذكــــور","Filles\nإنـــاث","Total\nمجموع","Garçons\nذكــــور","Filles\nإنـــاث","Total\nمجموع","Garçons\nذكــــور","Filles\nإنـــاث","Total\nمجموع"]
[null,"Moins de 6 ans",null,null,{"$f":"C28+D28","v":0},null,null,{"$f":"F28+G28","v":0},null,null,{"$f":"I28+J28","v":0},null,null,{"$f":"L28+M28","v":0},{"$f":"C28+F28+I28+L28","v":0},{"$f":"D28+G28+J28+M28","v":0},{"$f":"O28+P28","v":0}]
[null,"أقل من 6 سنوات"]
[null,"6 ans",null,null,{"$f":"C30+D30","v":0},null,null,{"$f":"F30+G30","v":0},null,null,{"$f":"I30+J30","v":0},null,null,{"$f":"L30+M30","v":0},{"$f":"C30+F30+I30+L30","v":0},{"$f":"D30+G30+J30+M30","v":0},{"$f":"O30+P30","v":0}]
[null,"6  سنــــــوات"]
[null,"7-11 ans",null,null,{"$f":"C32+D32","v":0},null,null,{"$f":"F32+G32","v":0},null,null,{"$f":"I32+J32","v":0},null,null,{"$f":"L32+M32","v":0},{"$f":"C32+F32+I32+L32","v":0},{"$f":"D32+G32+J32+M32","v":0},{"$f":"O32+P32","v":0}]
[null,"7- 11 سننة"]
[null,"12-14 ans",null,null,{"$f":"C34+D34","v":0},null,null,{"$f":"F34+G34","v":0},null,null,{"$f":"I34+J34","v":0},null,null,{"$f":"L34+M34","v":0},{"$f":"C34+F34+I34+L34","v":0},{"$f":"D34+G34+J34+M34","v":0},{"$f":"O34+P34","v":0}]
[null,"12- 14 سننة"]
[null,"15-17 ans",null,null,{"$f":"C36+D36","v":0},null,null,{"$f":"F36+G36","v":0},null,null,{"$f":"I36+J36","v":0},null,null,{"$f":"L36+M36","v":0},{"$f":"C36+F36+I36+L36","v":0},{"$f":"D36+G36+J36+M36","v":0},{"$f":"O36+P36","v":0}]
[null,"15- 17 سننة"]
[null,"Plus de 17 ans",null,null,{"$f":"C38+D38","v":0},null,null,{"$f":"F38+G38","v":0},null,null,{"$f":"I38+J38","v":0},null,null,{"$f":"L38+M38","v":0},{"$f":"C38+F38+I38+L38","v":0},{"$f":"D38+G38+J38+M38","v":0},{"$f":"O38+P38","v":0}]
[null,"أكثــر من 17 سنة"]
[null,"Total\nالمجموع",{"$f":"SUM(C28:C39)","v":0},0,0,0,0,0,0,0,0,0,0,0,0,0,0]

{"sheet":"بطاقة المؤسسة","index":11,"n_rows":43,"n_cols":15,"rows_kept":43,"cut":false,"hidden":false,"merged":[[20,0,20,1],[20,2,20,3],[20,4,20,5],[20,6,20,7],[18,6,18,7],[19,0,19,1],[19,2,19,3],[19,4,19,5],[19,6,19,7],[12,9,13,9],[12,10,13,10],[12,11,13,11],[12,12,13,12],[10,0,10,7],[10,9,10,12],[12,0,13,1],[12,2,13,3],[12,4,12,7],[13,4,13,5],[13,6,13,7],[0,0,0,4],[1,0,1,4],[2,0,3,15],[7,2,7,8],[7,10,7,11],[7,12,7,14],[0,11,0,14],[1,11,1,14],[4,0,4,6],[4,7,4,9],[14,0,14,1],[14,2,14,3],[14,4,14,5],[14,6,14,7],[15,0,15,1],[15,2,15,3],[15,4,15,5],[15,6,15,7],[46,9,46,12],[16,0,16,1],[16,2,16,3],[16,4,16,5],[16,6,16,7],[17,0,17,1],[17,2,17,3],[17,4,17,5],[17,6,17,7],[18,9,18,14],[26,10,27,11],[28,8,28,9],[28,10,28,11],[18,0,18,1],[18,2,18,3],[18,4,18,5],[36,2,36,13],[49,16,49,18],[25,4,25,7],[25,8,25,11],[26,4,26,5],[34,2,34,3],[34,5,34,6],[25,12,25,15],[26,12,26,13],[25,0,25,3],[26,0,26,1],[26,2,26,3],[26,6,26,7],[30,2,30,7],[32,5,32,7],[46,0,46,6],[32,2,32,4],[23,0,23,15],[33,2,33,3],[42,9,42,12],[42,4,42,5],[26,14,26,15],[38,2,38,3],[38,4,38,5],[38,6,38,7],[38,8,38,9],[38,10,38,11],[33,5,33,6],[38,12,38,13],[37,2,37,11],[37,12,37,13],[26,8,27,9]]}
["الأكاديمية الجهوية للتربية والتكوين ",null,null,null,null,null,null,null,null,null,null,"المديرية الإقليمية بالفداء مرس السلطان"]
["لجهة الدار البيضاء سطات",null,null,null,null,null,null,null,null,null,null,"مصلحة التخطيط و الخريطة المدرسية"]
["بطاقة المؤسسة"]
[]
["الموسم الدراسي :",null,null,null,null,null,null,{"$f":"+استقبال!E3","v":"2017-2016"}]
[]
[]
["المؤسسة :",null,{"$f":"مسك1!E1","v":"مدرسة الأمـــل الابتدائية"},null,null,null,null,null,null,null,"الرمز :",null,{"$f":"مسك1!Q1","v":"01495Z"}]
[]
[]
["التلاميذ والفصول ",null,null,null,null,null,null,null,null,"التعليم الأولي"]
[]
["المستوى",null,"عدد\nالفصول",null,"العدد الإجمالي للتلاميذ",null,null,null,null,"المستوى","الفصول","التلاميذ","الإناث منهم"]
[null,null,null,null,"المجموع",null,"الإناث منهم"]
["الأولى ",null,{"$f":"مسك2!D8","v":0},null,{"$f":"SUM(مسك1!H7:BK7)","v":0},null,{"$f":"SUM(مسك1!I7,مسك1!K7,مسك1!M7,مسك1!O7,مسك1!Q7,مسك1!S7,مسك1!U7,مسك1!W7,مسك1!Y7,مسك1!AA7,مسك1!AC7,مسك1!AE7,مسك1!AG7,مسك1!AI7,مسك1!AK7,مسك1!AM7,مسك1!AO7,مسك1!AQ7,مسك1!AS7,مسك1!AU7,مسك1!AW7,مسك1!AY7,مسك1!BA7,مسك1!BC7,مسك1!BE7,مسك1!BG7,مسك1!BI7,مسك1!BK7)","v":0},null,null,"الأول",{"$f":"+'تعليم أولي'!K22","v":0},{"$f":"+'تعليم أولي'!K23","v":0},{"$f":"+'تعليم أولي'!K24","v":0}]
["الثانية ",null,{"$f":"مسك2!D9","v":0},null,{"$f":"SUM(مسك1!H8:BK8)","v":0},null,{"$f":"SUM(مسك1!I8,مسك1!K8,مسك1!M8,مسك1!O8,مسك1!Q8,مسك1!S8,مسك1!U8,مسك1!W8,مسك1!Y8,مسك1!AA8,مسك1!AC8,مسك1!AE8,مسك1!AG8,مسك1!AI8,مسك1!AK8,مسك1!AM8,مسك1!AO8,مسك1!AQ8,مسك1!AS8,مسك1!AU8,مسك1!AW8,مسك1!AY8,مسك1!BA8,مسك1!BC8,مسك1!BE8,مسك1!BG8,مسك1!BI8,مسك1!BK8)","v":0},null,null,"الثاني",{"$f":"+'تعليم أولي'!L22","v":0},{"$f":"+'تعليم أولي'!L23","v":0},{"$f":"+'تعليم أولي'!L24","v":0}]
["الثالثة ",null,{"$f":"مسك2!D10","v":0},null,{"$f":"SUM(مسك1!H9:BK9)","v":0},null,{"$f":"SUM(مسك1!I9,مسك1!K9,مسك1!M9,مسك1!O9,مسك1!Q9,مسك1!S9,مسك1!U9,مسك1!W9,مسك1!Y9,مسك1!AA9,مسك1!AC9,مسك1!AE9,مسك1!AG9,مسك1!AI9,مسك1!AK9,مسك1!AM9,مسك1!AO9,مسك1!AQ9,مسك1!AS9,مسك1!AU9,مسك1!AW9,مسك1!AY9,مسك1!BA9,مسك1!BC9,مسك1!BE9,مسك1!BG9,مسك1!BI9,مسك1!BK9)","v":0},null,null,"المجموع",{"$f":"SUM(K15:K16)","v":0},{"$f":"SUM(L15:L16)","v":0},{"$f":"SUM(M15:M16)","v":0}]
["الرابعة",null,{"$f":"مسك2!D11","v":0},null,{"$f":"SUM(مسك1!H10:BK10)","v":0},null,{"$f":"SUM(مسك1!I10,مسك1!K10,مسك1!M10,مسك1!O10,مسك1!Q10,مسك1!S10,مسك1!U10,مسك1!W10,مسك1!Y10,مسك1!AA10,مسك1!AC10,مسك1!AE10,مسك1!AG10,مسك1!AI10,مسك1!AK10,مسك1!AM10,مسك1!AO10,مسك1!AQ10,مسك1!AS10,مسك1!AU10,مسك1!AW10,مسك1!AY10,مسك1!BA10,مسك1!BC10,مسك1!BE10,مسك1!BG10,مسك1!BI10,مسك1!BK10)","v":0}]
["الخامسة",null,{"$f":"مسك2!D12","v":0},null,{"$f":"SUM(مسك1!H11:BK11)","v":0},null,{"$f":"SUM(مسك1!I11,مسك1!K11,مسك1!M11,مسك1!O11,مسك1!Q11,مسك1!S11,مسك1!U11,مسك1!W11,مسك1!Y11,مسك1!AA11,مسك1!AC11,مسك1!AE11,مسك1!AG11,مسك1!AI11,مسك1!AK11,مسك1!AM11,مسك1!AO11,مسك1!AQ11,مسك1!AS11,مسك1!AU11,مسك1!AW11,مسك1!AY11,مسك1!BA11,مسك1!BC11,مسك1!BE11,مسك1!BG11,مسك1!BI11,مسك1!BK11)","v":0},null,null,"أقسام ذوي الاحتياجات الخاصة"]
["السادسة",null,{"$f":"مسك2!D13","v":0},null,{"$f":"SUM(مسك1!H12:BK12)","v":0},null,{"$f":"SUM(مسك1!I12,مسك1!K12,مسك1!M12,مسك1!O12,مسك1!Q12,مسك1!S12,مسك1!U12,مسك1!W12,مسك1!Y12,مسك1!AA12,مسك1!AC12,مسك1!AE12,مسك1!AG12,مسك1!AI12,مسك1!AK12,مسك1!AM12,مسك1!AO12,مسك1!AQ12,مسك1!AS12,مسك1!AU12,مسك1!AW12,مسك1!AY12,مسك1!BA12,مسك1!BC12,مسك1!BE12,مسك1!BG12,مسك1!BI12,مسك1!BK12)","v":0},null,null,null,"إعاقة حركية","مكفوفون","إعاقة عقلية","الصم و البكم","المجموع"]
["المجموع",null,{"$f":"SUM(C15:D20)","v":0},null,{"$f":"SUM(E15:F20)","v":0},null,{"$f":"SUM(G15:H20)","v":0},null,null,"أقسام",{"$f":"+'دوي الاحتياجات الخاصة'!C17","v":0},{"$f":"'دوي الاحتياجات الخاصة'!F17","v":0},{"$f":"'دوي الاحتياجات الخاصة'!I17","v":0},{"$f":"'دوي الاحتياجات الخاصة'!L17","v":0},{"$f":"SUM(K21:N21)","v":0}]
[null,null,null,null,null,null,null,null,null,"تلاميذ",{"$f":"'دوي الاحتياجات الخاصة'!C18","v":0},{"$f":"'دوي الاحتياجات الخاصة'!F18","v":0},{"$f":"'دوي الاحتياجات الخاصة'!I18","v":0},{"$f":"'دوي الاحتياجات الخاصة'!L18","v":0},{"$f":"SUM(K22:N22)","v":0}]
[null,null,null,null,null,null,null,null,null,"الإناث منهم",{"$f":"'دوي الاحتياجات الخاصة'!C19","v":0},{"$f":"'دوي الاحتياجات الخاصة'!F19","v":0},{"$f":"'دوي الاحتياجات الخاصة'!I19","v":0},{"$f":"'دوي الاحتياجات الخاصة'!L19","v":0},{"$f":"SUM(K23:N23)","v":0}]
[" هيئة التدريس"]
[]
["المتوفر",null,null,null,"العاملون",null,null,null,"الفائضون/ الخصاص"]
["المعربون",null,"المزدوجون",null,"المعربون",null,"المزدوجون",null,"المعربون",null,"المزدوجون"]
["مجموع","إناث","مجموع","إناث","مجموع","إناث","مجموع","إناث"]
[null,null,null,null,null,null,null,null,{"$f":"A29-E29","v":0},null,{"$f":"C29-G29","v":0}]
[]
[null,null,"هيئة الإدارة والخدمات"]
[]
[null,null,"هيئة الإدارة ",null,null,"هيئة الخدمات "]
[null,null,"مجموع",null,"إناث منهم","مجموع",null,"إناث منهم"]
[]
[]
[null,null,"الحجرات "]
[null,null,"التعليم العام",null,null,null,null,null,null,null,null,null,"متعددة الوسائط"]
[null,null,"المتوفرة",null,"المستعملة للتدريس",null,"المغلقة",null,"المعارة",null,"المستعملة لأغراض أخرى",null,"المتوفرة"]
[null,null,"صالحة","غير صالحة","صالحة","غير صالحة","صالحة","غير صالحة","صالحة","غير صالحة","صالحة","غير صالحة","صالحة","غير صالحة"]
[null,null,{"$f":"'مدرسون-حجرات'!L20","v":0},{"$f":"'مدرسون-حجرات'!L21","v":0},{"$f":"'مدرسون-حجرات'!L23","v":0},{"$f":"'مدرسون-حجرات'!L24","v":0},{"$f":"'مدرسون-حجرات'!L29","v":0},{"$f":"'مدرسون-حجرات'!L30","v":0},{"$f":"'مدرسون-حجرات'!L27","v":0},{"$f":"'مدرسون-حجرات'!L28","v":0},{"$f":"'مدرسون-حجرات'!L25","v":0},{"$f":"'مدرسون-حجرات'!L26","v":0},{"$f":"'مدرسون-حجرات'!N20","v":0},{"$f":"'مدرسون-حجرات'!N21","v":0}]
[]
[null,null,"الدار البيضاء في : ",null,{"$f":"TODAY()","v":"2016-11-29"},null,null,null,null,"توقيع السيد (ة) المدير (ة) :"]

{"sheet":"الأجانب","index":12,"n_rows":89,"n_cols":13,"rows_kept":89,"cut":false,"hidden":false,"merged":[[40,1,40,3],[40,4,40,5],[40,6,40,7],[40,8,40,9],[40,10,40,11],[40,12,40,14],[44,3,44,4],[44,9,44,12],[2,0,3,14],[41,1,41,3],[41,4,41,5],[41,6,41,7],[41,8,41,9],[41,10,41,11],[41,12,41,14],[38,1,38,3],[38,4,38,5],[38,6,38,7],[38,8,38,9],[38,10,38,11],[38,12,38,14],[39,1,39,3],[39,4,39,5],[39,6,39,7],[39,8,39,9],[39,10,39,11],[39,12,39,14],[36,1,36,3],[36,4,36,5],[36,6,36,7],[36,8,36,9],[36,10,36,11],[36,12,36,14],[37,1,37,3],[37,4,37,5],[37,6,37,7],[37,8,37,9],[37,10,37,11],[37,12,37,14],[34,1,34,3],[34,4,34,5],[34,6,34,7],[34,8,34,9],[34,10,34,11],[34,12,34,14],[35,1,35,3],[35,4,35,5],[35,6,35,7],[35,8,35,9],[35,10,35,11],[35,12,35,14],[32,1,32,3],[32,4,32,5],[32,6,32,7],[32,8,32,9],[32,10,32,11],[32,12,32,14],[33,1,33,3],[33,4,33,5],[33,6,33,7],[33,8,33,9],[33,10,33,11],[33,12,33,14],[30,1,30,3],[30,4,30,5],[30,6,30,7],[30,8,30,9],[30,10,30,11],[30,12,30,14],[31,1,31,3],[31,4,31,5],[31,6,31,7],[31,8,31,9],[31,10,31,11],[31,12,31,14],[28,1,28,3],[28,4,28,5],[28,6,28,7],[28,8,28,9],[28,10,28,11],[28,12,28,14],[29,1,29,3],[29,4,29,5],[29,6,29,7],[29,8,29,9],[29,10,29,11],[29,12,29,14],[26,1,26,3],[26,4,26,5],[26,6,26,7],[26,8,26,9],[26,10,26,11],[26,12,26,14],[27,1,27,3],[27,4,27,5],[27,6,27,7],[27,8,27,9],[27,10,27,11],[27,12,27,14],[24,1,24,3],[24,4,24,5],[24,6,24,7],[24,8,24,9],[24,10,24,11],[24,12,24,14],[25,1,25,3],[25,4,25,5],[25,6,25,7],[25,8,25,9],[25,10,25,11],[25,12,25,14],[22,1,22,3],[22,4,22,5],[22,6,22,7],[22,8,22,9],[22,10,22,11],[22,12,22,14],[23,1,23,3],[23,4,23,5],[23,6,23,7],[23,8,23,9],[23,10,23,11],[23,12,23,14],[20,1,20,3],[20,4,20,5],[20,6,20,7],[20,8,20,9],[20,10,20,11],[20,12,20,14],[21,1,21,3],[21,4,21,5],[21,6,21,7],[21,8,21,9],[21,10,21,11],[21,12,21,14],[18,1,18,3],[18,4,18,5],[18,6,18,7],[18,8,18,9],[18,10,18,11],[18,12,18,14],[19,1,19,3],[19,4,19,5],[19,6,19,7],[19,8,19,9],[19,10,19,11],[19,12,19,14],[16,1,16,3],[16,4,16,5],[16,6,16,7],[16,8,16,9],[16,10,16,11],[16,12,16,14],[17,1,17,3],[17,4,17,5],[17,6,17,7],[17,8,17,9],[17,10,17,11],[17,12,17,14],[14,1,14,3],[14,4,14,5],[14,6,14,7],[14,8,14,9],[14,10,14,11],[14,12,14,14],[15,1,15,3],[15,4,15,5],[15,6,15,7],[15,8,15,9],[15,10,15,11],[15,12,15,14],[12,1,12,3],[12,4,12,5],[12,6,12,7],[12,8,12,9],[12,10,12,11],[12,12,12,14],[13,1,13,3],[13,4,13,5],[13,6,13,7],[13,8,13,9],[13,10,13,11],[13,12,13,14],[0,0,0,4],[1,0,1,4],[7,2,7,8],[7,10,7,11],[7,12,7,14],[11,1,11,3],[11,4,11,5],[11,6,11,7],[11,8,11,9],[11,10,11,11],[11,12,11,14],[4,0,4,6],[4,7,4,9]]}
["الأكاديمية الجهوية للتربية والتكوين ",null,null,null,null,null,null,null,null,null,"المديرية الإقليمية  بالفداء مرس السلطان"]
["لجهة الدار البيضاء سطات"]
["لائحة التلاميذ الأجانب"]
[]
["الموسم الدراسي :",null,null,null,null,null,null,{"$f":"+استقبال!E3","v":"2017-2016"}]
[]
[]
["المؤسسة :",null,{"$f":"استقبال!E6","v":"مدرسة الأمـــل الابتدائية"},null,null,null,null,null,null,null,"الرمز :",null,{"$f":"استقبال!E9","v":"01495Z"}]
[]
[]
[]
["ر.ت","الإسم الكامل للتلميذ",null,null,"تاريخ الإزدياد",null,"الجنسية",null,"المستوى الدراسي",null,"داخلي /خارجي",null,"العنوان"]
[1]
[2]
[3]
[4]
[5]
[6]
[7]
[8]
[9]
[10]
[11]
[12]
[13]
[14]
[15]
[16]
[17]
[18]
[19]
[20]
[21]
[22]
[23]
[24]
[25]
[26]
[27]
[28]
[29]
[30]
[]
[]
[null,"الدار البيضاء في : ",null,{"$f":"TODAY()","v":"2016-11-29"},null,null,null,null,null,"توقيع السيد (ة) المدير (ة) :"]
[]
[]
[]
[]
[]
[]
[]
[]
[]
[]
[]
[]
[]
[]
[]
[]
[]
[]
[]
[]
[]
[]
[]
[]
[]
[]
[]
[]
[]
[]
[]
[]
[]
[]
[]
[]
[]
[]
[null,null,null,null,null,"الأول ابتدائي",null,"داخلي"]
[null,null,null,null,null,"الثاني ابتدائي",null,"خارجي"]
[null,null,null,null,null,"الثلث ابتدائي"]
[null,null,null,null,null,"الرابع ابتدائي"]
[null,null,null,null,null,"الخامس ابتدائي"]
[null,null,null,null,null,"السادس ابتدائي"]

{"sheet":"MOBILIER","index":13,"n_rows":20,"n_cols":9,"rows_kept":20,"cut":false,"hidden":false,"merged":[[8,5,9,5],[8,6,9,6],[8,7,8,8],[0,0,0,8],[1,0,1,8],[7,0,9,0],[7,1,9,1],[7,2,7,5],[7,6,7,8],[8,2,9,2],[8,3,9,3],[8,4,9,4],[5,12,5,22],[5,0,5,1],[5,7,5,8],[2,0,2,8],[3,4,3,5],[5,2,5,5],[3,0,3,3]]}
["RECENSEMENT ANNUEL SCOLAIRE "]
[" Fiche : Inventaire du mobilier scolaire \n                                             "]
["     بطاقة : جرد الأثاث المدرسي  "]
["الموسم الدراسي :",null,null,null,{"$f":"استقبال!E3","v":"2017-2016"}]
[]
["Etablissement        المؤسسة",null,{"$f":"+استقبال!E6","v":"مدرسة الأمـــل الابتدائية"},null,null,null,null,{"$f":"+استقبال!E9","v":"01495Z"}]
[]
["N° d'ordre\nالرقم الترتيبي","Libellé\nالتسمية","Quantité   الكمية",null,null,null,"Bon état  صالح"]
[null,null,"Bon état\nصالح","A réparer\nيصلح","A réformer\nيسحب","Total \nالمجموع","Utilisé","Stocké بالخزين"]
[null,null,null,null,null,null,null," Déjà utilisé\nسبق استعماله","Neuf\nجديد"]
[1,"Pupitre\nطاولة التلميذ",null,null,null,{"$f":"SUM(C11:E11)","v":0}]
[2,"Table individuelle\nطاولة فردية",null,null,null,{"$f":"SUM(C12:E12)","v":0}]
[3,"Tableau triptyque\nسبورة ثلاثية الأضلاع",null,null,null,0]
[4,"Bureau de maitre\nمكتب المعلم",null,null,null,0]
[5,"Bureau de professeur\nمكتب الأستاذ",null,null,null,0]
[6,"Chaise semi-métallique\nكرسي نصف حديدي",null,null,null,0]
[7,"Tabouret\nكرسي علمي",null,null,null,0]
[8,"Tabouret réglable\nكرسي علمي قابل للضبط",null,null,null,0]
[]
[null,null,null,null,null,null,"توقيع السيد(ة) المدير(ة):"]

{"sheet":"TS Ens Primaire","index":14,"n_rows":50,"n_cols":12,"rows_kept":50,"cut":false,"hidden":false,"merged":[[31,4,31,9],[33,4,33,9],[35,4,35,9],[37,4,37,9],[39,4,39,6],[29,4,29,9],[4,3,4,4],[6,3,6,4],[8,3,8,10],[10,4,10,7],[15,4,15,7],[17,4,17,5],[19,4,19,5],[21,4,21,5],[23,4,23,5],[25,4,25,5],[27,4,27,9]]}
[" Questionnaire  Q11/2",null,null,"Fiche Personnel (Public)                      (عمومي)   بطاقة الموظف  "]
[" Réservé au personnel des établissements scolaires       خاص بأطر المؤسسات التعليمية"]
[null,null,"Tableau de service de l'enseignant du primaire"]
["Identification de l'enseignant"]
[null,"ر . ب . و","CIN "]
[]
[null,"رقم التأجير","PPR "]
[]
[null,"الإسم والنسب","Nom et Prénom"]
["Identification de l'Etablissement "]
["المؤسسة","Etablissement (Code Gresa et nom de l'établissement)"]
[]
["Renseignement sur type d'affectation, cycle,niveaux enseignés, classe et horaire"]
[null,"نوع التعيين","Type d'affectation (P ou F)",null,null,"(P: تعيين أصلي ; F: تكليف )"]
[]
[null,"السلك","Cycle (code et intitulé)",10,"التعليم الإبتدائي"]
[]
[null,"نوع القسم ","Type de classe","CCU","قسم بمستوى وحيد"]
[]
[null,null,null,"CCM","قسم متعدد المستويات"]
[]
[null,"المواد المدرسة","Matière(s) enseignée(s)","Arabe","العربية"]
[]
[null,null,null,"Français","الفرنسية"]
[]
[null,null,null,"Amazighia","الأمازيغية"]
[]
[null,"المستوى الأول","1° Année primaire"]
[]
[null,"المستوى الثاني","2° Année primaire"]
[]
[null,"المستوى الثالث","3° Année primaire"]
[]
[null,"المستوى الرابع","4° Année primaire"]
[]
[null,"المستوى الخامس","5° Année primaire"]
[]
[null,"المستوى السادس","6° Année primaire"]
[]
[null,"عدد الأقسام","Nombre de classe",null,"Total Horaire d'enseignement",null,null,null,null,null,"مجموع ساعة التدريس"]
[]
["Répartition des matières par jour et horaire"]
[null,null,"N° Horaire",1,2,3,4,1,5,6,7,8]
[null,"N° Jour","Jour","8h-9h","9h-10h","10h-11h","11h-12h",null,"14h-15h","15h-16h","16h-17h","17h-18h"]
[null,1,"Lundi الإثنين"]
[null,2,"Mardi  الثلاثاء"]
[null,3,"Mercredi  الأربعاء"]
[null,4,"Jeudi  الخميس"]
[null,5,"Vendredi  الجمعة"]
[null,6,"Samedi  السبت"]

{"sheet":"Feuil2","index":15,"n_rows":11,"n_cols":4,"rows_kept":11,"cut":false,"hidden":true,"merged":[[9,0,9,2],[10,0,10,2]]}
[]
[null,"REC","DEP","DIFFERENCE"]
["2016-11-21",2016,407]
["2016-11-22",2406,1817]
["2016-11-23",2061,1234]
["2016-11-24",2167,274]
["2016-11-25",2447,490]
["2016-11-26",2332,1569]
["TOTAL",{"$f":"SUM(B3:B8)","v":13429},{"$f":"SUM(C3:C8)","v":5791},{"$f":"B9-C9","v":7638}]
["EMPLOYES",null,null,5825]
["RESULTATS",null,null,{"$f":"D9-D10","v":1813}]